{"text_format":"1","workbook":"xlsx","n_sheets":14,"sheets":["FLUJO DE REGISTRO","CATEGORIZACIÓN","PLAN DE DESARROLLO","PROBLEMÁTICA","PARTICIPANTES","POBLACIÓN","OBJETIVO","ALTERNATIVAS","PRODUCTO","CADENA DE VALOR ","ANÁLISIS TÉCNICO","LOCALIZACION","EJES HABILITADORES","ANÁLISIS DE CAPACIDADES"],"not_rendered":{"charts":0,"images":0,"macros":1,"external_links":0,"defined_names":0,"comments":6,"pivot_tables":0},"unopened":[],"bounds":{"document_bytes":16777216,"sheet_cells":100000,"rows_first":2000,"rows_last":500,"rows_between":2000,"halvings":0,"cell_chars":16384,"cell_head_chars":4096},"cells_cut":0,"cells_raw":0,"read":"whole","date_system":"1900"}

{"sheet":"FLUJO DE REGISTRO","index":0,"n_rows":764,"n_cols":14,"rows_kept":764,"cut":false,"hidden":false,"merged":[[1,1,1,3],[763,13,763,16],[764,13,770,16]]}
[]
[null,"FLUJO DE REGISTRO DE INFORMACIÓN "]
[]
[]
[]
[null,null,null,null,null,"Créditos"]
[null,null,null,null,null,"Entidad formuladora:"]
[null,null,null,null,null,"Cluster OrinocoTIC"]
[null,null,null,null,null,"direccion@orinocotic.org"]
[]
[]
[]
[]
[]
[]
[]
[]
[]
[]
[]
[]
[]
[]
[]
[]
[]
[]
[]
[]
[]
[]
[]
[]
[]
[]
[]
[]
[]
[]
[]
[]
[]
[]
[]
[]
[]
[]
[]
[]
[]
[]
[]
[]
[]
[]
[]
[]
[]
[]
[]
[]
[]
[]
[]
[]
[]
[]
[]
[]
[]
[]
[]
[]
[]
[]
[]
[]
[]
[]
[]
[]
[]
[]
[]
[]
[]
[]
[]
[]
[]
[]
[]
[]
[]
[]
[]
[]
[]
[]
[]
[]
[]
[]
[]
[]
[]
[]
[]
[]
[]
[]
[]
[]
[]
[]
[]
[]
[]
[]
[]
[]
[]
[]
[]
[]
[]
[]
[]
[]
[]
[]
[]
[]
[]
[]
[]
[]
[]
[]
[]
[]
[]
[]
[]
[]
[]
[]
[]
[]
[]
[]
[]
[]
[]
[]
[]
[]
[]
[]
[]
[]
[]
[]
[]
[]
[]
[]
[]
[]
[]
[]
[]
[]
[]
[]
[]
[]
[]
[]
[]
[]
[]
[]
[]
[]
[]
[]
[]
[]
[]
[]
[]
[]
[]
[]
[]
[]
[]
[]
[]
[]
[]
[]
[]
[]
[]
[]
[]
[]
[]
[]
[]
[]
[]
[]
[]
[]
[]
[]
[]
[]
[]
[]
[]
[]
[]
[]
[]
[]
[]
[]
[]
[]
[]
[]
[]
[]
[]
[]
[]
[]
[]
[]
[]
[]
[]
[]
[]
[]
[]
[]
[]
[]
[]
[]
[]
[]
[]
[]
[]
[]
[]
[]
[]
[]
[]
[]
[]
[]
[]
[]
[]
[]
[]
[]
[]
[]
[]
[]
[]
[]
[]
[]
[]
[]
[]
[]
[]
[]
[]
[]
[]
[]
[]
[]
[]
[]
[]
[]
[]
[]
[]
[]
[]
[]
[]
[]
[]
[]
[]
[]
[]
[]
[]
[]
[]
[]
[]
[]
[]
[]
[]
[]
[]
[]
[]
[]
[]
[]
[]
[]
[]
[]
[]
[]
[]
[]
[]
[]
[]
[]
[]
[]
[]
[]
[]
[]
[]
[]
[]
[]
[]
[]
[]
[]
[]
[]
[]
[]
[]
[]
[]
[]
[]
[]
[]
[]
[]
[]
[]
[]
[]
[]
[]
[]
[]
[]
[]
[]
[]
[]
[]
[]
[]
[]
[]
[]
[]
[]
[]
[]
[]
[]
[]
[]
[]
[]
[]
[]
[]
[]
[]
[]
[]
[]
[]
[]
[]
[]
[]
[]
[]
[]
[]
[]
[]
[]
[]
[]
[]
[]
[]
[]
[]
[]
[]
[]
[]
[]
[]
[]
[]
[]
[]
[]
[]
[]
[]
[]
[]
[]
[]
[]
[]
[]
[]
[]
[]
[]
[]
[]
[]
[]
[]
[]
[]
[]
[]
[]
[]
[]
[]
[]
[]
[]
[]
[]
[]
[]
[]
[]
[]
[]
[]
[]
[]
[]
[]
[]
[]
[]
[]
[]
[]
[]
[]
[]
[]
[]
[]
[]
[]
[]
[]
[]
[]
[]
[]
[]
[]
[]
[]
[]
[]
[]
[]
[]
[]
[]
[]
[]
[]
[]
[]
[]
[]
[]
[]
[]
[]
[]
[]
[]
[]
[]
[]
[]
[]
[]
[]
[]
[]
[]
[]
[]
[]
[]
[]
[]
[]
[]
[]
[]
[]
[]
[]
[]
[]
[]
[]
[]
[]
[]
[]
[]
[]
[]
[]
[]
[]
[]
[]
[]
[]
[]
[]
[]
[]
[]
[]
[]
[]
[]
[]
[]
[]
[]
[]
[]
[]
[]
[]
[]
[]
[]
[]
[]
[]
[]
[]
[]
[]
[]
[]
[]
[]
[]
[]
[]
[]
[]
[]
[]
[]
[]
[]
[]
[]
[]
[]
[]
[]
[]
[]
[]
[]
[]
[]
[]
[]
[]
[]
[]
[]
[]
[]
[]
[]
[]
[]
[]
[]
[]
[]
[]
[]
[]
[]
[]
[]
[]
[]
[]
[]
[]
[]
[]
[]
[]
[]
[]
[]
[]
[]
[]
[]
[]
[]
[]
[]
[]
[]
[]
[]
[]
[]
[]
[]
[]
[]
[]
[]
[]
[]
[]
[]
[]
[]
[]
[]
[]
[]
[]
[]
[]
[]
[]
[]
[]
[]
[]
[]
[]
[]
[]
[]
[]
[]
[]
[]
[]
[]
[]
[]
[]
[]
[]
[]
[]
[]
[]
[]
[]
[]
[]
[]
[]
[]
[]
[]
[]
[]
[]
[]
[]
[]
[]
[]
[]
[]
[]
[]
[]
[]
[]
[]
[]
[]
[]
[]
[]
[]
[]
[]
[]
[]
[]
[]
[]
[]
[]
[]
[]
[]
[]
[]
[]
[]
[]
[]
[]
[]
[]
[null,null,null,null,null,null,null,null,null,null,null,null,null,"OTRAS ENTIDADES "]

{"sheet":"CATEGORIZACIÓN","index":1,"n_rows":22,"n_cols":4,"rows_kept":22,"cut":false,"hidden":false,"merged":[[8,3,8,10],[13,3,13,10],[11,3,11,10],[12,3,12,10],[9,3,9,10],[10,3,10,10],[1,2,1,10],[7,3,7,10],[6,3,6,10],[4,3,4,10],[3,2,3,10],[5,3,5,10],[20,2,20,10],[21,3,21,10],[18,3,18,10],[14,2,14,10],[15,3,15,10],[16,3,16,10],[17,3,17,10]]}
[]
[null,"CATEGORIZACIÓN- PROYECTO POTENCIAL","1.CATEGORIZACIÓN- PROYECTO POTENCIAL"]
[null,null,"Otros sectores -borrador "," "]
[null,null,"1.1DATOS BÁSICOS"]
[null,null,"Nombre de la entidad:"]
[null,null,"Nombre de la organización: "]
[null,null,"Municipio: "]
[null,null,"Departamento:"]
[null,null,"Nombre del líder del proyecto:"]
[null,null,"Teléfono:"]
[null,null,"Número de celular:"]
[null,null,"Correo electrónico:"]
[null,null,"Sector de la cuádruple hélice:"]
[]
[null,null,"1.2.DATOS BÁSICOS DEL PROYECTO"]
[null,null,"Nombre del proyecto :"]
[null,null,"Dimensión :","Habitat"]
[null,null,"Subdimensión :","Movilidad Inteligente"]
[null,null,"Código SIGEP "]
[]
[null,null,"1.3. ENTIDADES PRIVADAS /ORGANIZACIONES SOCIALES / SOCIEDAD CIVIL"]
[null,null,"El proyecto esta acompañado por una entidad pública?"]

{"sheet":"PLAN DE DESARROLLO","index":2,"n_rows":31,"n_cols":7,"rows_kept":31,"cut":false,"hidden":false,"merged":[[5,11,5,12],[28,4,28,10],[23,3,23,10],[15,3,15,10],[16,3,16,10],[18,2,18,5],[20,3,20,10],[21,3,21,10],[25,2,25,5],[26,3,26,10],[27,3,27,10],[4,6,4,10],[11,6,11,10],[22,3,22,10],[2,2,2,10],[11,2,11,5],[13,3,13,10],[14,3,14,10],[4,2,4,5],[6,3,6,10],[7,3,7,10],[8,3,8,10],[9,3,9,10]]}
[]
[]
[null,null,"02.CONTRIBUCIÓN A LA POLÍTICA PÚBLICA "]
[]
[null,null,"01. CONTRIBUCIÓN AL PLAN DE DESARROLLO",null,null,null,"https://colaboracion.dnp.gov.co/CDT/MGA/VIDEOSMGA/IDENTIFICACION/plan%20de%20desarrollo.mp4"]
[]
[null,null,"Plan de Desarrollo","PACTO POR COLOMBIA PACTO POR LA EQUIDAD"]
[null,null,"Estratégia transversal","Pacto por el transporte y la logística para la competitividad y la integración regional"]
[null,null,"Reto ","Movilizar nuevos recursos para viabilizar proyectos de transporte."]
[null,null,"Estrategia ","Fortaleceremos los sistemas de transporte de pasajeros como servicio público esencial para suplir las necesidades de los usuarios."]
[]
[null,null,"02.  PLAN DE DESARROLLO DEPARTAMENTAL O SECTORIAL"]
[]
[null,null,"Plan Desarrollo Departamental o sectorial"]
[null,null,"Estrategia del Plan de Desarrollo Departamental o sectorial"]
[null,null,"Línea"]
[null,null,"Programa Plan de Desarrollo "]
[]
[null,null,"03.  PLAN DE DESARROLLO DISTRITAL O MUNICIPAL"]
[]
[null,null,"Plan de Desarrollo Distrital o Municipal"]
[null,null,"Estrategia del Plan de Desarrollo Distrital o Municipal"]
[null,null,"Líneas"]
[null,null,"Programa Plan de Desarrollo Distrital o Municipal"]
[]
[null,null,"04.  PLAN ESTRÁTEGICO /PMI / PLAN DE ACCIÓN "]
[null,null,"Plan estrátegico del proyecto"]
[null,null,"Plan de acción "]
[]
[]
[null,"Nota","En la herramienta informática en primer lugar se seleccionan los campos vinculados a la estructura de la parte estratégica del Plan Nacional de Desarrollo vigente según los catálogos de las listas desplegables disponibles y luego en los formularios para el registro de la información correspondiente a los planes sectoriales y/o territoriales que puedan aplicar, el usuario transcribe el nombre del plan respectivo, la estrategia y el programa que guarda relación con el potencial proyecto de inversión pública que se está diligenciando 5."]

{"sheet":"PROBLEMÁTICA","index":3,"n_rows":67,"n_cols":13,"rows_kept":67,"cut":false,"hidden":false,"merged":[[27,3,27,10],[35,2,37,2],[38,2,40,2],[42,2,44,2],[42,3,42,10],[44,3,44,10],[41,3,41,10],[34,3,34,10],[35,3,35,10],[36,3,36,10],[32,2,32,10],[12,2,12,10],[19,3,19,10],[20,3,20,10],[21,3,21,10],[22,3,22,10],[14,2,15,2],[16,2,18,2],[19,2,20,2],[22,2,25,2],[13,3,13,10],[14,3,14,10],[16,3,16,10],[25,3,25,10],[2,2,2,10],[7,3,7,10],[8,3,8,10],[9,3,9,10],[4,2,4,10],[5,2,5,10],[11,2,11,10],[27,2,30,2],[12,13,13,15],[16,13,27,15],[5,11,5,13],[7,12,7,15],[9,13,10,15],[26,3,26,10],[15,3,15,10],[17,3,17,10],[18,3,18,10],[23,3,23,10],[24,3,24,10],[28,3,28,10],[29,3,29,10],[30,3,30,10]]}
[]
[]
[null,null,"03.IDENTIFICACIÓN Y DESCRIPCIÓN DEL PROBLEMA  "]
[]
[null,null,"Validando la iniciativa"]
[null,null,"3.1.IDENTIFICACIÓN Y DESCRIPCIÓN DEL PROBLEMA  ",null,null,null,null,null,null,null,null,"https://colaboracion.dnp.gov.co/CDT/MGA/VIDEOSMGA/IDENTIFICACION/problematica.mp4"]
[]
[null,null,"Problema Central ","Sistema de transporte publico colectivo ineficiente en ____________________________________ sin soporte en tecnologías de la información",null,null,null,null,null,null,null,null,"ARBOL DE  PROBLEMAS "]
[null,null,"Descripción de la situación existente con relación al problema","El gobierno local ha intentado desarrollar un sistema que mejore la calidad de los servicios, sin embargo este proceso no ha sido satisfactorio, ya que se ha aplicado de manera autoritaria y sin tener en cuenta a los principales actores del proceso del Transporte publico: CONDUCTORES y USUARIOS. El sistema actual presenta grandes fallas y la desorganizacion y el caos se notan en las horas pico. El aumento de vehiculos y motocicletas en las vias se hace cada vez mas notable por el hecho de no contar con un servicio de transporte publico de calidad en la ciudad. "]
[null,null,"Magnitud actual del problema ","La ciudad de ________________ cuenta con ______________ habitantes​ de los cuales _________________ habitantes se identifican como poblacion urbana. Cada día mas de ______________________ personas utilizan transporte publico colectivo (TPC) en la ciudad de ______________. Así mismo cada fin de semana son mas de ___________ turistas utilizan el sistema de transporte publico, incrementando los inconvenientes actuales. \n\nLa ciudad de _______________ cuenta con un parque automotor de transporte publico colectivo de ___________ unidades, las cuales operan dentro de las ____ rutas que ofrece la ciudad, La movilidad en la ciudad se realiza de la misma manera en que se hacia hace ____ años. El turismo ha aumentado significativamente durante la última década y aún se tiene muchos aspectos logísticos por mejorar. ",null,null,null,null,null,null,null,null,"EFECTOS."]
[null,null,null,null,null,null,null,null,null,null,null,null,"(Ramas)"]
[null,null,"CAUSAS QUE GENERAN EL PROBLEMA "]
[null,null,"Anexo 1. Canvas  Anexo 2. Restrospectiva Anexo 3. Validando la iniciativa",null,null,null,null,null,null,null,null,null,"PROBLEMA"]
[null,null,"Causas directas ","Causas Indirectas ",null,null,null,null,null,null,null,null,"(Troncol)"]
[null,null,"1 Falta de control del servicio de transporte publico ","1,1 Sobreoferta o suboferta del servicio hacia los usuarios "]
[null,null,null,"1,2 Disputa por pasajeros (Guerra del centavo)"]
[null,null,"2 Falta de infraestructura vial adecuada para el TPC","2,1 Congestion vehicular ",null,null,null,null,null,null,null,null,"CAUSAS "]
[null,null,null,"2,2 No hay priorizacion en las vias para el TPC"]
[null,null,null,"2,3 Desconocimiento de la gestion de dejar y recoger pasajeros en sitios permitidos"]
[null,null,"3 Falta de sistematización en el sistema de movilidad","3,1 Carencia de sistemas de informacion para la toma de decisiones"]
[null,null,null,"3,2 Falta de geoposicionamiento del parque automotor (tpc)"]
[null,null,"4 Mayores tiempos de desplazamiento para los usuarios ","4,1 Poca confianza en el servicio de TPC"]
[null,null,"5 Alta probabilidad de accidentalidad ","4,2 Congestion vehicular "]
[null,null,null,"4,3 inmovilizacion del parque automotor por accidente"]
[null,null,null,"4,4 Ausencia de campañas de civilizacion para la seguridad vial de los actores de la movilidad"]
[null,null,null,"4,5 Jornadas de trabajo extensas para los conductores del servicio de TPC"]
[null,null,"6 Baja rentabilidad para los prestadores de servicios","5,1 Sobrecupos del parque automotor "]
[null,null,"7 Poca gestión publica ","6,1 Trabajos desarticulados en las cooperativas de transporte de la ciudad",null,null,null,null,null,null,null,null,"(Raices)"]
[null,null,null,"6,2 Ausencia de politica local para la regulacion del TPC"]
[null,null,null,"6,3 Falta de voluntad politica "]
[null,null,null,"6,4 Falta de gestion de recursos con la nacion para la gestion del TPC"]
[]
[null,null,"EFECTOS GENERADOS POR EL PROBLEMA "]
[]
[null,null,"Efectos Directos","Efectos Indirectos "]
[null,null,"1 Rutas de transporte urbano congestionadas ","1.1 Afectación de la imagen del municipio por parte de la comunidad y visitantes"]
[null,null,null,"1,2 Alto indice de accidentalidad "]
[null,null,null,"1,3 Aumento en los tiempos de desplazamiento "]
[null,null,"2 Sistema de transporte publico Manual ","2,1 Desconfianza de los usuarios a usar transporte publico colectivo "]
[null,null,null,"2,2 Aumento de vehiculos y motocicletas en la ciudad "]
[null,null,null,"2,3 Disputas por la recoleccion de pasajeros por parte de los conductores de colectivos "]
[null,null,"3 Ausencia de data e informacion de transito urbano ","3,1 Toma de decisiones sin soportes y evidencias "]
[null,null,"4 Baja competitividad en la ciudad","4,1 disminucion de la calidad de vida de la poblacion "]
[null,null,null,"4,2 metodologias desorganizadas en la prestacion del servicio"]
[null,null,null,"4,3 personal con baja capacitacion en prestacion del servicio "]
[]
[]
[null,"Notas:","Identificación y definición del problema"]
[null,null," \nINSUMOS: Planes sectoriales y de desarrollo relacionados, lluvia de ideas, consulta con expertos, diagnósticos."]
[null,null,"TECNICAS: Árbol de problemas"]
[null,null,"PROCESO:\n- Definición del problema central\n- Identificación de efectos directos e indirectos\n- Identificación de causas directas e indirectas\n- Verificación de consistencia lógica"]
[null,null,"SALIDAS:\n- Árbol de problemas diligenciado, descripción del problema con\nlíneas de base definidas."]
[]
[]
[]
[]
[]
[]
[]
[]
[]
[]
[]
[]
[]
[]
[null,"Nota","Página 20 -Manual conceptual borrador 2020"]

{"sheet":"PARTICIPANTES","index":4,"n_rows":55,"n_cols":5,"rows_kept":55,"cut":false,"hidden":false,"merged":[[38,2,42,10],[7,2,7,3],[7,4,7,10],[13,2,13,3],[13,4,13,10],[35,3,35,10],[25,2,25,3],[25,4,25,10],[26,4,28,10],[29,3,29,10],[19,2,19,3],[19,4,19,10],[20,4,22,10],[23,3,23,10],[3,2,3,10],[2,2,2,10],[5,2,5,10],[37,2,37,10],[11,3,11,10],[8,4,10,10],[31,2,31,3],[31,4,31,10],[14,4,16,10],[17,3,17,10],[32,4,34,10]]}
[]
[]
[null,null,"04.IDENTIFICACIÓN Y ANÁLISIS DE PARTICIPANTES "]
[null,null,"Anexo 1. Canvas. / Anexo 2 Validación del canvas "]
[]
[null,null,"IDENTIFICACIÓN DE PARTICIPANTES "]
[]
[null,null,"PARTICIPANTE",null,"CONTRIBUCIÓN Y GESTIÓN "]
[null,null,"Actor ",null,"Técnico, financiero y legal para el desarrollo del proyecto"]
[null,null,"Entidad"]
[null,null,"Posición ó rol"]
[null,null,"Intereses o expectativas ","La entidad tiene como objetivo diseñar e implementar instrumentos y mecanismos efectivos de organización, gestión y control de la ocupación del suelo, invirtiendo en la rehabilitación del espacio público, la protección del corredor ecológico del municipio, la construcción de vivienda, infraestructura, movilidad y la oferta de servicios públicos de calidad para todos los ciudadanos y ciudadanas. (PLAN DE DESARROLLO 2020-2023)"]
[]
[null,null,"PARTICIPANTE",null,"CONTRIBUCIÓN Y GESTIÓN "]
[null,null,"Actor ",null,"Técnico para el desarrollo del proyecto"]
[null,null,"Entidad"]
[null,null,"Posición ó rol"]
[null,null,"Intereses o expectativas ","Brindar a la comunidad un servicio de transporte publico inteligente y de calidad "]
[]
[null,null,"PARTICIPANTE",null,"CONTRIBUCIÓN Y GESTIÓN "]
[null,null,"Actor ",null,"Técnico para el desarrollo del proyecto"]
[null,null,"Entidad"]
[null,null,"Posición ó rol"]
[null,null,"Intereses o expectativas ","Brindar a la comunidad un servicio de transporte publico inteligente y de calidad "]
[]
[null,null,"PARTICIPANTE",null,"CONTRIBUCIÓN Y GESTIÓN "]
[null,null,"Actor ",null,"Operación y validacion del sistema "]
[null,null,"Entidad"]
[null,null,"Posición ó rol"]
[null,null,"Intereses o expectativas ","Acceder a un sistema de transporte organizado, utilizando tegnologia e innovacion en el proceso "]
[]
[null,null,"PARTICIPANTE",null,"CONTRIBUCIÓN Y GESTIÓN "]
[null,null,"Actor ",null,"Control social a las actividades del proyecto (Veeduría ciudadana)"]
[null,null,"Entidad"]
[null,null,"Posición ó rol"]
[null,null,"Intereses o expectativas ","Gozar de un sistema de transporte publico de calidad en la ciudad de _________________"]
[]
[null,null,"ANÁLISIS DE PARTICIPANTES"]
[null,null,"La entidad_________________________ propone una plataforma para controlar y operar el sistema de transporte publico en ________________________, la cual se operará conjuntamente con los involucrados en el proceso, siguiendo los lineamientos y politicas de la administracion municipal  "]
[]
[]
[]
[]
[]
[]
[]
[]
[]
[]
[null,null,"Notas:","Identificación y  análisis de participantes"]
[null,null,null," \nINSUMOS: Lluvia de ideas y registros históricos."]
[null,null,null,"TECNICAS: Consulta con expertos o grupos focales."]
[null,null,null,"PROCESO:\n- Registro personas o entidades relacionadas con el proyecto.\n- Caracterización y análisis de sus intereses, expectativas, poder, influencia, contribución o limitación.\n- Categorización de los actores de acuerdo a su rol y acciones para potenciar o limitar sus efectos."]
[null,null,null,"SALIDAS:\n- Registro de involucrados."]
[null,null,"Pág ",25]

{"sheet":"POBLACIÓN","index":5,"n_rows":56,"n_cols":12,"rows_kept":56,"cut":false,"hidden":false,"merged":[[19,3,19,5],[20,3,20,5],[21,3,21,5],[22,3,22,5],[23,3,23,5],[25,3,25,5],[26,3,26,5],[27,3,27,5],[28,3,28,5],[29,3,29,5],[42,3,42,5],[38,6,42,9],[39,3,39,5],[40,3,40,5],[41,3,41,5],[48,2,49,2],[48,5,48,6],[49,5,49,6],[4,2,4,10],[5,2,5,5],[6,2,6,5],[7,2,7,5],[5,6,5,10],[6,6,6,10],[7,6,7,10],[9,2,9,10],[11,2,11,5],[12,3,12,5],[12,6,15,10],[11,6,11,10],[13,3,13,5],[3,2,3,10],[2,11,2,13],[2,2,2,10],[44,2,44,10],[47,5,47,6],[14,3,14,5],[15,3,15,5],[37,6,37,9],[37,2,37,5],[38,3,38,5],[17,2,17,10],[32,3,32,5],[33,3,33,5],[34,3,34,5],[35,3,35,5],[31,3,31,5]]}
[]
[]
[null,null,"05.POBLACIÓN AFECTADA ",null,null,null,null,null,null,null,null,"https://colaboracion.dnp.gov.co/CDT/MGA/VIDEOSMGA/IDENTIFICACION/poblacion.mp4"]
[null,null,"Anexo 1 / DANE/ SISBEN / CONCEPTUALIZADORES"]
[null,null,"POBLACIÓN AFECTADA POR EL  PROBLEMA "]
[null,null,"Tipo de población ",null,null,null,"Personas"]
[null,null,"Número"]
[null,null,"Fuente de información ",null,null,null,"Censo DANE, proyecciones 2020, poblacion total rural y urbana. "]
[]
[null,null,"LOCALIZACIÓN"]
[]
[null,null,"Ubicación General",null,null,null,"Localización Especifíca "]
[null,null,"Región ",null,null,null,"Zona urbana y rural del municipio de _________________________"]
[null,null,"Departamento"]
[null,null,"Municipio"]
[null,null,"Centro Poblado "]
[]
[null,null,"02. POBLACIÓN OBJETIVO DE LA INTERVENCIÓN "]
[]
[null,null,"Tipo de población "]
[null,null,"Número "]
[null,null,"Fuente de Información "]
[null,null,"Municipio"]
[null,null,"Centro Poblado "]
[]
[null,null,"Tipo de población ","Gobierno local "]
[null,null,"Número "]
[null,null,"Fuente de Información ","Alcaldia municipal"]
[null,null,"Municipio"]
[null,null,"Centro Poblado "]
[]
[null,null,"Tipo de población ","Personas"]
[null,null,"Número "]
[null,null,"Fuente de Información ",{"$f":"+G8","v":"Censo DANE, proyecciones 2020, poblacion total rural y urbana. "}]
[null,null,"Municipio"]
[null,null,"Centro Poblado "]
[]
[null,null,"Ubicación General",null,null,null,"Localización específica",null,null,null,"Nombre del concejo comunitario"]
[null,null,"Región ",null,null,null,{"$f":"+G13","v":"Zona urbana y rural del municipio de _________________________"}]
[null,null,"Departamento"]
[null,null,"Municipio"]
[null,null,"Centro Poblado "]
[null,null,"Resguardo"]
[]
[null,null,"CARCTERISTICAS DEMOGRAFICAS DE LA POBLACIÓN OBJETIVO"]
[]
[]
[null,null,"Clasificación","Detalle","No. De personas","Fuentes de la informacion"]
[null,null,"Genero","Femenino",null,"Censo DANE, proyecciones 2020"]
[null,null,null,"Masculino ",null,"Censo DANE, proyecciones 2020"]
[]
[null,null,"Notas:","Población afectada por el problema"]
[null,null,null," \nINSUMOS: Árbol de problemas, Involucrados, Diagnóstico, Registros históricos, Censos, BD: SISBEN, Red Unidos, etc,."]
[null,null,null,"TECNICAS: Tendencias, proyecciones, promedios."]
[null,null,null,"PROCESO:\n- Identificación de la población afectada por el problema.\n- Definición de restricciones y condiciones de focalización para\nselección de beneficiarios.\n- Determinación y caracterización de la población objetivo"]
[null,null,null,"SALIDAS:\n- Población objetivo"]

{"sheet":"OBJETIVO","index":6,"n_rows":44,"n_cols":28,"rows_kept":44,"cut":false,"hidden":false,"merged":[[21,2,21,14],[23,2,23,5],[23,6,23,14],[10,11,10,14],[11,11,13,14],[10,2,10,5],[10,6,10,10],[11,6,13,10],[22,2,22,14],[11,2,13,5],[17,2,19,5],[17,6,19,10],[17,11,19,14],[14,11,16,14],[14,2,16,5],[14,6,16,10],[9,2,9,14],[2,2,2,14],[3,27,3,28],[4,27,5,28],[9,18,9,21],[8,2,8,14],[3,2,3,14],[5,2,5,5],[6,2,6,5],[5,6,5,14],[6,6,6,14],[4,2,4,14],[4,24,5,25],[3,24,3,25],[21,19,22,21],[4,18,5,19],[3,18,3,19],[3,21,3,22],[4,21,5,22],[17,19,17,21],[19,19,19,21],[11,19,11,21],[13,19,13,21],[24,3,24,5],[29,3,29,5],[33,3,33,5],[26,6,28,14],[24,6,25,14],[29,6,30,14],[31,6,33,14],[27,3,27,5],[28,3,28,5],[32,3,32,5],[25,3,25,5],[26,3,26,5],[30,3,30,5],[31,3,31,5]]}
[]
[]
[null,null,"OBJETIVOS  ESPECIFICOS",null,null,null,null,null,null,null,null,null,null,null,null,"https://colaboracion.dnp.gov.co/CDT/MGA/VIDEOSMGA/IDENTIFICACION/objetivos.mp4"]
[null,null,"FP/ Anexo 1 y 3  /Canvas /  CONCEPTUALIZADOR",null,null,null,null,null,null,null,null,null,null,null,null,null,null,null,"Objetivo",null,null,"Acción a realzar ",null,null,"Objeto",null,null,"Elementos descriptivos"]
[null,null,"OBJETIVO GENERAL E INDICADORES DE SEGUIMIENTO"]
[null,null,"Problema central",null,null,null,{"$f":"+PROBLEMÁTICA!D8","v":"Sistema de transporte publico colectivo ineficiente en ____________________________________ sin soporte en tecnologías de la información"}]
[null,null,"Objetivo general-proposito",null,null,null,"Mejorar la operación del TPC en ____________________________ reduciendo tiempos de espera y desplazamiento e integrando rutas con informacion en tiempo real. "]
[]
[null,null,"INDICADORES PARA MEDIR EL OBJETIVO GENERAL"]
[null,null,"Conceptualizador / Anexo 1",null,null,null,null,null,null,null,null,null,null,null,null,null,null,null,"ARBOL DE  OBJETIVO"]
[null,null,"Indicador",null,null,null,"Descripción",null,null,null,null,"Fuente de verificación"]
[null,null,"Numero de vehiculos colectivos usando la plantaforma ",null,null,null,"Medido a través de conteo vehicular                                  Meta: ______________Vehiculos ",null,null,null,null,"Conteo vehicular / informe de gestión ",null,null,null,null,null,null,"EFECTOS."," Determinan los fines o beneficios que se espera obtener con la ejecución del proyecto"]
[]
[null,null,null,null,null,null,null,null,null,null,null,null,null,null,null,null,null,null,"PROBLEMA","Determina el objetivo general (alcance) del proyecto"]
[null,null,"Numero de rutas cubiertas con la plataforma de transporte publico inteligente",null,null,null,"Medido a través de la plataforma                                        Meta: __________ rutas",null,null,null,null,"Data / informe de gestión "]
[]
[]
[null,null,"Porcentaje de usuarios de transporte publico usando la plataforma de transporte publico inteligente para movilizarse",null,null,null,"Medido a través de la plataforma                                        Meta: ________%",null,null,null,null,"Data / informe de gestión ",null,null,null,null,null,null,"EFECTOS."," Determinan los fines o beneficios que se espera obtener con la ejecución del proyecto"]
[]
[null,null,null,null,null,null,null,null,null,null,null,null,null,null,null,null,null,null,"PROBLEMA","Determina el objetivo general (alcance) del proyecto"]
[]
[null,null,"RELACIONES ENTRE CAUSAS Y OBJETIVOS",null,null,null,null,null,null,null,null,null,null,null,null,null,null,null,"CAUSAS "," Determinan objetivos específicos, alternativas, productos y actividades, es decir los medios que serán utilizados."]
[null,null,"FP/Anexo 1 y 3 / CONCEPTUALIZADOR",null,null,null,null,null,null,null,null,null,null,null,null,null,null,null,"(Raices)"]
[null,null,"Causa relacionada",null,null,null,"Objetivos Específicos"]
[null,null,"Causa directa 1",{"$f":"+PROBLEMÁTICA!D15","v":"1,1 Sobreoferta o suboferta del servicio hacia los usuarios "},null,null,"Reorganizar la oferta de rutas de TPC en la ciudad de _______________, proponiendo una operación transitoria  por parte de los conductores permitiendo la participacion y equidad en las oportunidades de recoleccion de pasajeros de manera justa y transparente. "]
[null,null,"Causa Indirecta 1.1 ",{"$f":"+PROBLEMÁTICA!D16","v":"1,2 Disputa por pasajeros (Guerra del centavo)"}]
[null,null,"Causa indirecta 1.2",{"$f":"+PROBLEMÁTICA!D17","v":"2,1 Congestion vehicular "},null,null,"Proponer un sistema de TPC que cree cultura ciudadana mediante la oferta de un servicio de calidad, seguro y apropiado a las necesidades de los usuarios en la ciudad de Villavicencio en el transcurso de 12 meses. "]
[null,null,"Causa directa 2",{"$f":"+PROBLEMÁTICA!D18","v":"2,2 No hay priorizacion en las vias para el TPC"}]
[null,null,"Causa Indirecta 2.1 ",{"$f":"+PROBLEMÁTICA!D19","v":"2,3 Desconocimiento de la gestion de dejar y recoger pasajeros en sitios permitidos"}]
[null,null,"Causa indirecta 2.2",{"$f":"+PROBLEMÁTICA!D20","v":"3,1 Carencia de sistemas de informacion para la toma de decisiones"},null,null,"  Implementar una plataforma tecnologica que garantice que mediante la innovacion y gestion de la información se puede mejorar el sistema de transporte Publico colectivo en el transcurso de__________ meses para ______________ colectivos del sistema."]
[null,null,"causa directa ",{"$f":"+PROBLEMÁTICA!D21","v":"3,2 Falta de geoposicionamiento del parque automotor (tpc)"}]
[null,null,"Causa indirecta",{"$f":"+PROBLEMÁTICA!D22","v":"4,1 Poca confianza en el servicio de TPC"},null,null,"Diseñar una herramienta de seguimiento del servicio de TPC para todos los usuarios permitiendo el acceso de todos y cada uno de los interesados, brindando utilidades que permitan detectar fallas, mejoras y calificacion del servicio y del sistema mediante una plataforma digital en el transcurso de _______ meses. "]
[null,null,"Causa indirecta",{"$f":"+PROBLEMÁTICA!D23","v":"4,2 Congestion vehicular "}]
[null,null,"Causa indirecta",{"$f":"+PROBLEMÁTICA!D24","v":"4,3 inmovilizacion del parque automotor por accidente"}]
[]
[null,null,null,"Objetivos generales y especificos"]
[null,null,"Notas:"," \nINSUMOS: Planes sectoriales y de desarrollo relacionados, Árbol y descripción de problemas"]
[null,null,null,"TECNICAS: Árbol de Objetivos"]
[null,null,null,"PROCESO:\n- Transformación del problema central en objetivo general del proyecto\n- Transformación de causas directas en objetivos específicos (Medios)\n- Transformación de efectos directos e indirectos en fines - Verificación de consistencia lógica"]
[null,null,null,"SALIDAS:\n- Árbol de Objetivos diligenciado."]
[]
[]
[]
[null,null,"Pág 28"]

{"sheet":"ALTERNATIVAS","index":7,"n_rows":28,"n_cols":18,"rows_kept":28,"cut":false,"hidden":false,"merged":[[9,3,12,8],[9,9,12,11],[9,12,12,15],[25,4,25,6],[26,4,26,6],[13,3,16,8],[2,3,2,15],[4,12,4,15],[5,12,8,15],[5,3,8,8],[4,3,4,8],[5,9,8,11],[3,3,3,15],[13,9,16,11],[13,12,16,15],[27,4,27,6],[23,4,23,6],[24,4,24,6]]}
[]
[]
[null,null,null,"ALTERNATIVAS DE LA SOLUCIÓN ",null,null,null,null,null,null,null,null,null,null,null,null,null,"https://colaboracion.dnp.gov.co/CDT/MGA/VIDEOSMGA/IDENTIFICACION/ALTERANTIVAS.mp4"]
[null,null,null,"CONCEPTUALIZADOR"]
[null,null,null,"Nombre de la alternativa ",null,null,null,null,null,"Se evaluará con esta herramienta",null,null,"Estado"]
[null,null,null,"Mejorar y/o reestructurar ________________________________",null,null,null,null,null,"% de mejoras a la plataforma de __________________                                                                          % de implementacion de la plataforma "]
[]
[]
[]
[null,null,null,"Cluster de cooperativas para la gestion de movilidad de TPC",null,null,null,null,null,"% de cooperativas incluidas"]
[]
[]
[]
[null,null,null,"Fondo de Prosperidad para el estudio y diseño del proyecto del Sistema Estratégico de Transporte Público",null,null,null,null,null,"% integracion con el proyecto"]
[]
[]
[]
[]
[]
[]
[]
[]
[]
[null,null,null,"Notas:","Identificación y definición del problema"]
[null,null,null,"pÁG 33"," \nINSUMOS: Árbol de Problemas, Árbol de Objetivos, Involucrados."]
[null,null,null,null,"TECNICAS:  Consulta con expertos e involucrados, Embudo de solución - Análisis DOFA."]
[null,null,null,null,"PROCESO:- Definición de acciones estratégicas de intervención para lograr los objetivos específicos.\n- Clasificación de acciones de intervención entre complementarias y sustitutas para cada objetivo específico.\n- Eliminar acciones de intervención aplicando la técnica de embudo de solución (Criterios técnicos, sociales, ambientales, legales y financieros).\n- Configuración de la(s) alternativa(s) de solución.\n- Determinación de la necesidad de realizar estudios de pre inversión.\n- "]
[null,null,null,null,"SALIDAS:Alternativa(s) de solución configurada(s).\n- "]

{"sheet":"PRODUCTO","index":8,"n_rows":28,"n_cols":27,"rows_kept":28,"cut":false,"hidden":false,"merged":[[17,25,17,26],[20,3,20,6],[20,7,20,15],[18,3,18,6],[18,7,18,15],[19,3,19,6],[19,7,19,15],[14,3,14,6],[14,7,14,15],[15,3,15,6],[15,7,15,15],[15,17,16,19],[16,3,16,6],[16,7,16,15],[10,3,10,6],[10,7,10,15],[11,3,11,6],[11,7,11,15],[12,3,12,6],[12,7,12,15],[2,3,2,15],[4,3,4,15],[6,3,6,6],[7,3,7,6],[8,3,8,6],[7,7,7,15],[6,7,6,15],[8,7,8,15],[5,3,5,15],[4,18,4,25],[6,17,7,26],[9,17,9,19],[9,20,9,22],[9,23,9,24],[23,4,23,6],[24,4,24,6],[25,4,25,6],[26,4,26,6],[27,4,27,6],[11,25,12,26],[20,25,21,26],[5,17,5,26],[9,25,9,26],[11,17,12,19],[20,17,21,19],[11,20,12,22],[20,20,21,22],[11,23,12,24],[20,23,21,24],[15,20,16,22],[15,23,16,24],[15,25,16,26],[17,17,17,19],[17,20,17,22],[17,23,17,24]]}
[]
[]
[null,null,null,"ESTUDIO DE NECESIDADES ",null,null,null,null,null,null,null,null,null,null,null,null,"https://colaboracion.dnp.gov.co/CDT/MGA/VIDEOSMGA/PREPARACION/necesidades.mp4"]
[]
[null,null,null,"BIENES  Ó SERVICIOS",null,null,null,null,null,null,null,null,null,null,null,null,null,null,"Definición de producto o unidades de medida",null,null,null,null,null,null,null,"Pág 38"]
[null,null,null,"Anexo 1 / Canvas/ Conceptualizador ",null,null,null,null,null,null,null,null,null,null,null,null,null,"Nombre"]
[null,null,null,"Bien o servicio",null,null,null,"Plataforma para control y operación de sistema de TPC",null,null,null,null,null,null,null,null,null,"Anexo 1 CANVAS /CONCEPTUALIZADOR"]
[null,null,null,"Medido a través de ",null,null,null,"Numero"]
[null,null,null,"Descripción ",null,null,null,"Cantidad de usuarios registrados y activos en la plataforma "]
[null,null,null,null,null,null,null,null,null,null,null,null,null,null,null,null,null,"Objetivos Especificos",null,null,"Acciones de intervención",null,null,"bienes o servicios",null,"cuantificación"]
[null,null,null,"Bien o servicio",null,null,null,"Implementacion de infraestructura de telecomunicaciones para el proyecto"]
[null,null,null,"Medido a través de ",null,null,null,"% implementado durante__________ meses ",null,null,null,null,null,null,null,null,null,"Anexo 1 CANVAS /CONCEPTUALIZADOR",null,null,"Anexo 1 CANVAS /CONCEPTUALIZADOR",null,null,"Anexo 1 CANVAS /CONCEPTUALIZADOR",null,"Anexo 1 CANVAS /CONCEPTUALIZADOR"]
[null,null,null,"Descripción ",null,null,null,"Cantidad de Vehiculos cubiertos con telefonia movil "]
[]
[null,null,null,"Bien o servicio",null,null,null,"Mesa de ayuda para la implementacion del sistema TPC"]
[null,null,null,"Medido a través de ",null,null,null,{"$f":"+H12","v":"% implementado durante__________ meses "},null,null,null,null,null,null,null,null,null,"Anexo 1 CANVAS /CONCEPTUALIZADOR",null,null,"Anexo 1 CANVAS /CONCEPTUALIZADOR",null,null,"Anexo 1 CANVAS /CONCEPTUALIZADOR",null,"Anexo 1 CANVAS /CONCEPTUALIZADOR"]
[null,null,null,"Descripción ",null,null,null,"Acuerdos entre alcaldia municipal y __________________________"]
[null,null,null,null,null,null,null,null,null,null,null,null,null,null,null,null,null,"Objetivos Especificos",null,null,"Acciones de intervención",null,null,"bienes o servicios",null,"cuantificación"]
[null,null,null,"Bien o servicio",null,null,null,"Acuerdos firmados con los actores interinstitucionales para la regulacion del TPC"]
[null,null,null,"Medido a través de ",null,null,null,"% implementado durante ______ meses "]
[null,null,null,"Descripción ",null,null,null,"Cantidad de alianzas realizadas con entidades publicas e institucionales "]
[" "]
[]
[null,null,null,"Notas:","Identificación y definición del problema"]
[null,null,null,"pÁG 33"," \nINSUMOS: Alternativas de solución, Población Afectada, Fuentes estadísticas."]
[null,null,null,null,"TECNICAS:  Tendencias, proyecciones, promedios."]
[null,null,null,null,"PROCESO:- Identificar los bienes y servicios a entregar para cumplir objetivos\nespecíficos de acuerdo con cada alternativa de solución.\n- Analizar el comportamiento histórico de la oferta y la demanda de\nlos bienes y servicios a entregar.\n- Proyectar la oferta (situación sin proyecto), y la demanda para el\nhorizonte previsto.\n- Realizar el cálculo de la diferencia entre oferta y demanda en el\nhorizonte del proyecto."]
[null,null,null,null,"SALIDA: Estudio de Necesidades"]

{"sheet":"CADENA DE VALOR ","index":9,"n_rows":35,"n_cols":19,"rows_kept":35,"cut":false,"hidden":false,"merged":[[3,2,3,10],[14,3,22,6],[8,8,15,11],[20,8,27,11],[8,13,15,16],[20,13,27,16],[7,8,7,11],[19,8,19,11],[7,13,7,16],[19,13,19,16],[13,3,13,6],[4,2,4,10],[7,18,7,20],[8,18,10,20],[12,18,14,20],[20,18,22,20],[25,18,27,20],[33,3,33,7],[34,3,34,7],[11,18,11,20],[19,18,19,20],[24,18,24,20],[30,3,30,7],[31,3,31,7],[32,3,32,7]]}
[]
[]
[]
[null,null,"CADENA DE VALOR ",null,null,null,null,null,null,null,null,"https://colaboracion.dnp.gov.co/CDT/MGA/VIDEOSMGA/PREPARACION/cadena%20de%20valor.mp4"]
[null,null,"Anexo 1 . Canvas / CONCEPTUALIZADORES"]
[]
[]
[null,null,null,null,null,null,null,null,"Objetivo específico 1",null,null,null,null,"Producto 1",null,null,null,null,"Actividad 1"]
[null,null,null,null,null,null,null,null,{"$f":"+OBJETIVO!G25","v":"Reorganizar la oferta de rutas de TPC en la ciudad de _______________, proponiendo una operación transitoria  por parte de los conductores permitiendo la participacion y equidad en las oportunidades de recoleccion de pasajeros de manera justa y transparente. "},null,null,null,null,"Diseño de plan de movilidad de transporte publico colectivo en la ciudad de _________________",null,null,null,null,"Plan de rutas de TPC en la ciudad de _________________"]
[]
[]
[null,null,null,null,null,null,null,null,null,null,null,null,null,null,null,null,null,null,"Actividad 2"]
[null,null,null,null,null,null,null,null,null,null,null,null,null,null,null,null,null,null,"Realizar un prototipo funcional y realizar pruebas de operación para los ______ vehiculos colectivos en la ciudad de ______________"]
[null,null,null,"Objetivo General"]
[null,null,null,{"$f":"+OBJETIVO!G7","v":"Mejorar la operación del TPC en ____________________________ reduciendo tiempos de espera y desplazamiento e integrando rutas con informacion en tiempo real. "}]
[]
[]
[]
[]
[null,null,null,null,null,null,null,null,"Objetivo específico 2",null,null,null,null,"Producto 2",null,null,null,null,"Actividad 1"]
[null,null,null,null,null,null,null,null,{"$f":"+OBJETIVO!G30","v":"  Implementar una plataforma tecnologica que garantice que mediante la innovacion y gestion de la información se puede mejorar el sistema de transporte Publico colectivo en el transcurso de__________ meses para ______________ colectivos del sistema."},null,null,null,null,"Crear una plataforma tecnologica que brinde toda la informacion de rutas y localizacion en tiempo real de los vehiculos, asi como otros componentes que inspiren seguridad y confianza en el servicio ",null,null,null,null,"Aplicación del sistema de TPC para prestadores del servicio (conductores)"]
[]
[]
[]
[null,null,null,null,null,null,null,null,null,null,null,null,null,null,null,null,null,null,"Actividad 2"]
[null,null,null,null,null,null,null,null,null,null,null,null,null,null,null,null,null,null,"Aplicación del sistema de TPC para usuarios del servicio (clientes)"]
[]
[]
[]
[]
[null,null,"Notas:","Cadena de valor y costos de la alternativa"]
[null,null,"Pág 46"," \nINSUMOS: Árbol de Objetivos, Alternativa(s) seleccionada(s)"]
[null,null,null,"TECNICAS: EDT o WBS"]
[null,null,null,"PROCESO:\n- Identificar bienes y servicios (Productos) entregados por las\nalternativas de solución.\n- Desagregar las actividades necesarias para entregar los\nproductos.\n- Graficar la correspondencia entre objetivos específicos y\nproductos y entre productos y actividades\n- Costear los insumos de cada una de las actividades para el\nhorizonte del proyecto"]
[null,null,null," Cadena de valor y costos de la alternativa"]

{"sheet":"ANÁLISIS TÉCNICO","index":10,"n_rows":5,"n_cols":17,"rows_kept":5,"cut":false,"hidden":false,"merged":[[4,7,15,15],[4,3,15,6],[2,3,2,15],[3,3,3,15]]}
[]
[]
[null,null,null,"ANÁLISIS TÉCNICO DE LA ALTERNATIVA ",null,null,null,null,null,null,null,null,null,null,null,null,"https://colaboracion.dnp.gov.co/CDT/MGA/VIDEOSMGA/PREPARACION/analisis%20tecnico.mp4"]
[null,null,null,"CONCEPTUALIZADORES"]
[null,null,null,"Alternativa ( Producto definido) ",null,null,null,"El proyecto contempla las siguientes actividades:                                                                                                       Desarrollo de sistema de información de movilidad.\nDesarrollo sistemas de pago y recarga de transporte público.\nVinculación empresas de transporte público.\nDesarrollo de sistemas de información turística.\nDesarrollo de plataformas móviles.\nImplementación de infraestructura (tótems digitales interactivos)\nConvenios con empresas de servicios (energía, conectividad)\nPromoción y ejecución del proyecto"]

{"sheet":"LOCALIZACION","index":11,"n_rows":29,"n_cols":13,"rows_kept":29,"cut":false,"hidden":false,"merged":[[5,6,5,11],[6,6,12,11],[3,3,3,11],[5,3,5,5],[6,4,6,5],[7,4,7,5],[8,4,8,5],[28,4,28,6],[9,4,9,5],[10,4,10,5],[11,4,11,5],[12,4,12,5],[17,4,17,11],[24,4,24,6],[25,4,25,6],[26,4,26,6],[27,4,27,6]]}
["A"]
[]
[]
[null,null,null,"LOCALIZACIÓN DE LA ALTERNATIVA",null,null,null,null,null,null,null,null,"https://colaboracion.dnp.gov.co/CDT/MGA/VIDEOSMGA/PREPARACION/localizacion.mp4"]
[]
[null,null,null,"Ubicación General",null,null,"Ubicación Específica"]
[null,null,null,"Región ",null,null,{"$f":"+POBLACIÓN!G39","v":"Zona urbana y rural del municipio de _________________________"}]
[null,null,null,"Departamento"]
[null,null,null,"Municipio"]
[null,null,null,"Centro poblado"]
[null,null,null,"Resguardo"]
[null,null,null,"Latitud"]
[null,null,null,"Longitud"]
[]
[]
[]
[]
[null,null,null,"Factores análizados"]
[null,null,null,"Aspectos administrativos y políticos, Cercanía a la población objetivo, Comunicaciones,"]
[null,null,null,"Estructura impositiva y legal, "]
[]
[null,null,null,"Otros "]
[]
[]
[null,null,null,"Notas:","Localización de la alternativa"]
[null,null,null,"Pág 44"," \nINSUMOS: Población objetivo, Déficit estudio de necesidades (Tamaño del proyecto), Análisis técnico de la alternativa. ."]
[null,null,null,null,"TECNICAS: Georeferenciación, Método de ponderación de factores."]
[null,null,null,null,"PROCESO:\n- Analizar la macro localización de la alternativa (Desarrollo Regional).\n- Analizar la micro localización de la alternativa (POT)\n- Definir la localización de la alternativa según criterios de\nordenamiento y desarrollo"]
[null,null,null,null,"\nSALIDAS:\n- Estudio de localización"]

{"sheet":"EJES HABILITADORES","index":12,"n_rows":53,"n_cols":12,"rows_kept":53,"cut":false,"hidden":false,"merged":[[44,1,45,3],[44,4,45,13],[46,1,47,3],[46,4,47,13],[48,1,49,3],[48,4,49,13],[38,1,39,3],[38,4,39,13],[40,1,41,3],[40,4,41,13],[42,1,43,3],[42,4,43,13],[28,1,29,3],[28,4,29,13],[30,1,30,13],[31,1,32,3],[31,4,32,13],[33,1,34,3],[33,4,34,13],[35,1,36,3],[35,4,36,13],[37,1,37,13],[23,1,24,3],[23,4,24,13],[25,1,25,13],[26,1,27,3],[26,4,27,13],[21,4,22,13],[12,1,13,3],[12,4,13,13],[14,1,15,3],[14,4,15,13],[16,1,16,13],[17,1,18,3],[17,4,18,13],[19,1,20,3],[19,4,20,13],[21,1,22,3],[1,1,2,13],[7,1,7,13],[8,1,9,3],[8,4,9,13],[10,1,11,3],[10,4,11,13],[5,1,5,13]]}
[]
[null,"MODELO CIUDAD Y TERRITORIO INTELIGENTE "]
[]
[]
[]
[null,"ANÁLISIS DE CAPACIDADES "]
[]
[null,"EJE HABILITADOR: INSTITUCIONALIDAD E INNOVACIÓN "]
[null,"CAPACIDAD 1",null,null,"La entidad tiene la capacidad para transformar e implementar la arquitectura misional (procesos, misión, visión, estructura organizacional, funciones y demás elementos propios de la misionalidad) con el fin de soportar la transformación requerida para convertirse en ciudades o territorios inteligentes"]
[]
[null,"CAPACIDAD 2",null,null,"La entidad tiene capacidad para realizar innovación pública y aplicar herramientas de innovación en el diseño, estructuración y ejecución de proyectos en la entidad, ciudad o territorio."]
[]
[null,"CAPACIDAD 3",null,null,"La entidad tiene la capacidad o habilidad para gestionar la consecución de recursos financieros y administrar el gasto y las inversiones para la formulación y ejecución de ciudades y territorios inteligentes."]
[]
[null,"CAPACIDAD 4",null,null,"La entidad tiene la capacidad o habilidad para gestionar el conocimiento, es\ndecir, de reducir las curvas de aprendizaje e incorporar la cultura del compartir y difundir conocimiento en todos los proyectos que se desarrollan en la entidad, ciudad o territorio."]
[]
[null,"EJE HABILITADOR:LIDERAZGO Y CAPITAL HUMANO"]
[null,"CAPACIDAD 5",null,null,"La entidad tiene la capacidad para liderar y gestionar la implementación de iniciativas de ciudades inteligentes."]
[]
[null,"CAPACIDAD 6",null,null,"la entidad tiene la capacidad para desarrollar competencias en los líderes de la entidad que permitan la implementación de iniciativas de Ciudades y Territorios Inteligentes."]
[]
[null,"CAPACIDAD 7",null,null,"La entidad tiene la capacidad para crear y fortalecer las habilidades de sus servidores públicos tendientes a impulsar el desarrollo de territorios y ciudades inteligentes."]
[]
[null,"CAPACIDAD  8",null,null,"La entidad tiene la capacidad para crear y fortalecer las habilidades de sus ciudadanos para el uso de soluciones de ciudades y territorios inteligentes"]
[]
[null,"EJE HABILITADOR : ANÁLITICA Y GESTIÓN DE DATOS"]
[null,"CAPACIDAD 9",null,null,"La entidad tiene la capacidad para gestionar y gobernar datos e información que garanticen su calidad durante todo su ciclo de vida"]
[]
[null,"CAPACIDAD 10",null,null,"La entidad puede y sabe aplicar técnicas y tecnologías para el análisis y explotación de datos para la toma de decisiones"]
[]
[null,"EJE HABILITADOR: TECNOLOGÍA Y ESTÁNDARES"]
[null,"CAPACIDAD 11",null,null,"La entidad tiene la capacidad de realizar la implementación, despliegue, pruebas y operación de los servicios de conectividad y nube."]
[]
[null,"CAPACIDAD 12",null,null,"La entidad tiene la capacidad de realizar la instalación, despliegue, pruebas y monitoreo de la infraestructura de IoT"]
[]
[null,"CAPACIDAD 13",null,null,"La entidad tiene la capacidad para incorporar e implementar estándares Técnicos de TI y tecnologías emergentes en la resolución de problemas y retos."]
[]
[null,"EJE HABILITADOR: INFRAESTRUCTURA DIGITAL E INTEROPERABILIDAD"]
[null,"CAPACIDAD 14",null,null,"La entidad tiene la capacidad de diseñar, implementar y gobernar los\nelementos que conforman las arquitecturas de TI de la entidad o de la ciudad"]
[]
[null,"CAPACIDAD 15",null,null,"La entidad desarrolla mecanismos y aplica estándares y buenas prácticas que facilitan el intercambio de información interna y externamente"]
[]
[null,"CAPACIDAD 16",null,null,"La entidad realizá implementación efectiva de controles y medidas para administrar riesgos de seguridad digital de la entidad"]
[]
[null,"CAPACIDAD  17",null,null,"La entidad aplica mejores prácticas para estructurar, iniciar, ejecutar, hacer seguimiento y cierre de proyectos de TI"]
[]
[null,"CAPACIDAD 18",null,null,"La entidad tiene la capacidad de realizar la instalación, despligue, pruebas y monitoreo de la infraestructura de IoT"]
[]
[null,"CAPACIDAD 19",null,null,"La entidad tiene la capacidad para incorporar e implementar estándares Técnicos de TI  y tecnologías emergentes  en la resolución de problemas y retos"]
[]
[]
[]
[null,null,null,null,null,null,null,null,null,null,null," "]

{"sheet":"ANÁLISIS DE CAPACIDADES","index":13,"n_rows":909,"n_cols":23,"rows_kept":909,"cut":false,"hidden":false,"merged":[[541,13,541,21],[541,2,541,11],[597,2,597,11],[597,13,597,21],[598,2,598,10],[599,2,599,10],[545,8,563,11],[600,8,600,11],[559,3,559,6],[550,3,550,6],[551,3,558,6],[555,13,555,16],[556,13,563,16],[542,2,542,10],[543,2,543,10],[544,8,544,11],[544,13,544,16],[545,13,552,16],[606,3,606,6],[607,3,614,6],[611,13,611,16],[612,13,619,16],[615,3,615,6],[600,13,600,16],[601,8,619,11],[601,13,608,16],[695,13,695,16],[649,8,667,11],[649,13,656,16],[654,3,654,6],[655,3,662,6],[659,13,659,16],[660,13,667,16],[663,3,663,6],[645,2,645,11],[645,13,645,21],[646,2,646,10],[647,2,647,10],[648,8,648,11],[648,13,648,16],[696,13,703,16],[683,2,683,10],[684,8,684,11],[684,13,684,16],[685,8,703,11],[685,13,692,16],[690,3,690,6],[681,2,681,11],[681,13,681,21],[682,2,682,10],[691,3,698,6],[741,8,759,11],[741,13,748,16],[746,3,746,6],[747,3,754,6],[751,13,751,16],[752,13,759,16],[737,2,737,11],[737,13,737,21],[738,2,738,10],[739,2,739,10],[740,8,740,11],[740,13,740,16],[795,13,795,16],[796,13,803,16],[783,2,783,10],[784,8,784,11],[784,13,784,16],[785,8,803,11],[785,13,792,16],[790,3,790,6],[776,2,776,11],[776,13,776,21],[782,2,782,10],[791,3,798,6],[842,8,860,11],[842,13,849,16],[847,3,847,6],[848,3,855,6],[852,13,852,16],[853,13,860,16],[856,3,856,6],[838,2,838,11],[838,13,838,21],[839,2,839,10],[840,2,840,10],[841,8,841,11],[841,13,841,16],[896,13,896,16],[897,13,902,16],[884,2,884,10],[885,8,885,11],[885,13,885,16],[886,8,902,11],[886,13,893,16],[891,3,891,6],[882,2,882,11],[882,13,882,21],[883,2,883,10],[900,3,900,6],[892,3,899,6],[494,13,501,16],[499,3,499,6],[500,3,507,6],[504,13,504,16],[505,13,512,16],[490,2,490,11],[490,13,490,21],[491,2,491,10],[492,2,492,10],[493,8,493,11],[493,13,493,16],[494,8,512,11],[508,3,508,6],[437,13,444,16],[442,3,442,6],[443,3,450,6],[447,13,447,16],[448,13,455,16],[433,2,433,11],[433,13,433,21],[434,2,434,10],[435,2,435,10],[436,8,436,11],[436,13,436,16],[437,8,455,11],[451,3,451,6],[386,3,386,6],[387,3,394,6],[391,13,391,16],[392,13,399,16],[381,8,399,11],[377,2,377,11],[377,13,377,21],[378,2,378,10],[379,2,379,10],[380,8,380,11],[380,13,380,16],[339,3,339,6],[340,3,347,6],[344,13,344,16],[345,13,352,16],[330,2,330,11],[331,2,331,10],[332,2,332,10],[333,8,333,11],[334,8,352,11],[348,3,348,6],[330,13,330,19],[305,3,305,6],[306,3,313,6],[310,13,310,16],[296,2,296,11],[296,13,296,21],[297,2,297,10],[298,2,298,10],[299,8,299,11],[299,13,299,16],[300,8,319,11],[257,3,257,6],[258,3,265,6],[262,13,262,16],[263,13,270,16],[248,2,248,11],[248,13,248,21],[249,2,249,10],[250,2,250,10],[251,8,251,11],[251,13,251,16],[252,8,270,11],[266,3,266,6],[205,3,205,6],[206,3,213,6],[210,13,210,16],[211,13,218,16],[200,8,218,11],[196,2,196,11],[196,13,196,21],[197,2,197,10],[198,2,198,10],[199,8,199,11],[199,13,199,16],[155,3,155,6],[156,3,163,6],[160,13,160,16],[161,13,170,16],[146,2,146,11],[146,13,146,21],[147,2,147,10],[148,2,148,10],[149,8,149,11],[149,13,149,16],[150,8,170,11],[164,3,164,6],[96,13,103,16],[101,3,101,6],[102,3,109,6],[106,13,106,16],[107,13,114,16],[92,2,92,11],[92,13,92,21],[93,2,93,10],[94,2,94,10],[95,8,95,11],[95,13,95,16],[96,8,114,11],[110,3,110,6],[14,13,14,16],[15,13,22,16],[0,2,0,11],[0,13,0,21],[1,2,1,10],[2,2,2,10],[3,8,3,11],[3,13,3,16],[4,8,22,11],[4,13,11,16],[9,3,9,6],[10,3,17,6],[19,3,19,6],[20,3,21,6],[22,3,22,6],[46,2,46,11],[46,13,46,21],[47,2,47,10],[48,2,48,10],[49,8,49,11],[24,13,24,16],[25,13,33,16],[72,13,72,16],[73,13,81,16],[49,13,49,16],[50,8,69,11],[50,13,57,16],[55,3,55,6],[56,3,63,6],[60,13,60,16],[61,13,69,16],[355,13,361,16],[402,13,402,16],[403,13,409,16],[118,13,118,16],[119,13,127,16],[273,13,273,16],[274,13,282,16],[174,13,174,16],[175,13,183,16],[224,13,224,16],[225,13,233,16],[150,13,157,16],[200,13,207,16],[252,13,259,16],[300,13,307,16],[334,13,341,16],[381,13,388,16],[907,13,907,16],[908,13,914,16],[311,13,319,16],[674,13,680,16],[705,13,705,16],[706,13,712,16],[764,13,764,16],[765,13,771,16],[808,13,808,16],[809,13,815,16],[866,13,866,16],[867,13,873,16],[457,13,457,16],[458,13,464,16],[516,13,516,16],[517,13,523,16],[566,13,566,16],[567,13,573,16],[623,13,623,16],[624,13,630,16],[673,13,673,16],[321,13,321,16],[322,13,328,16],[354,13,354,16]]}
[null,null,"ANÁLISIS DE CAPACIDADES",null,null,null,null,null,null,null,null,null,null,"INSUMOS -PROCESO"]
[]
[]
[null,null,null,null,null,null,null,null,"ESTADO  ACTUAL DE LA CAPACIDAD ",null,null,null,null,"FURAG",null,null,null,null,null,null,"CÓDIGO FURAG","PREGUNTA ","RESPUESTA"]
[null,null,null,null,null,null,null,null,"Se cuenta con un sistema de gestion integrado el cual tiene definidos mision, vision, procesos y procedimientos de operacion, todos orientados hacia el cumplimiento de estandares de calidad, medio ambiente y seguridad y salud en el trabajo. Tenemos toda la capacidad tecnica para orientar formalmente nuestra gestion al desarrollo de ciudades y territorios inteligentes. ",null,null,null,null,"NA",null,null,null,null,null,null,"GDI37"]
[null,null,null,null,null,null,null,null,null,null,null,null,null,null,null,null,null,null,null,null,"GDI04"]
[null,null,null,null,null,null,null,null,null,null,null,null,null,null,null,null,null,null,null,null,"GDI05"]
[null,null,null,null," ",null,null,null,null,null,null,null,null,null,null,null,null,null,null,null,"GDI03"]
[]
[null,null,null,"CAPACIDAD 1"]
[null,null,null,"La entidad tiene la capacidad para transformar e implementar la arquitectura misional (procesos, misión, visión estructura organizacional, funciones y demás elementos propios de la misionalidad) con el fin de soportar la transformación requerida para convertirse en ciudades o territorios inteligentes"]
[]
[]
[]
[null,null,null,null,null,null,null,null,null,null,null,null,null,"INFORMACIÓN CUALITATIVA ADICIONAL"]
[null,null,null,null,null,null,null,null,null,null,null,null,null,"En nuestro equipo de trabajo contamos con ingenieros civiles, especialistas en transito y transporte, Diseñadores urbanisticos y de vias, y especialistas en HSEQ quienes tienen la capacidad de mejorar y transformar los aspectos necesarios de la empresa para el diseño de ciudades inteligentes. "]
[]
[]
[]
[]
[]
[]
[]
[]
[null,null,null,null,null,null,null,null,null,null,null,null,null,"OTRAS ENTIDADES "]
[null,null,null,null,null,null,null,null,null,null,null,null,null,"Podemos generar alianzas estrategicas con el _____________ y con ____________________ (Entidades que desarrollan programas tecnologicos en nuestra ciudad)"]
[]
[]
[]
[]
[]
[]
[]
[]
[]
[]
[]
[]
[]
[]
[]
[]
[]
[]
[]
[]
[null,null,"ANÁLISIS DE CAPACIDADES",null,null,null,null,null,null,null,null,null,null,"INSUMOS -PROCESO"]
[]
[]
[null,null,null,null,null,null,null,null,"ESTADO  ACTUAL DE LA CAPACIDAD ",null,null,null,null,"FURAG"]
[null,null,null,null,null,null,null,null,"Se tiene como objeto misional el desarrollo de proyectos de construccion e innovacion. Actualmente estamos buscando la manera de articular las obras civiles con tecnologia. Desarrollamos paralelamente plataformas tecnologicas, paginas web y aplicaciones. Fusionar estos dos aspectos es nuestro objetivo."]
[]
[]
[null,null,null,null,null,null,null,null,null,null,null,null,null,null,null,null,null,null,null,null,"CÓDIGO FURAG","PREGUNTA ","RESPUESTA"]
[null,null,null,null,null,null,null,null,null,null,null,null,null,null,null,null,null,null,null,null,"GCI09"]
[null,null,null,"CAPACIDAD 2",null,null,null,null,null,null,null,null,null,null,null,null,null,null,null,null,"GCI12"]
[null,null,null,"La entidad tiene capacidad para realizar innovación pública y aplicar herramientas de innovación en el diseño, estructuración y ejecución de proyectos en la entidad, ciudad o territorio.",null,null,null,null,null,null,null,null,null,null,null,null,null,null,null,null,"GCI13"]
[null,null,null,null,null,null,null,null,null,null,null,null,null,null,null,null,null,null,null,null,"GCI14"]
[null,null,null,null,null,null,null,null,null,null,null,null,null,null,null,null,null,null,null,null,"GCI15"]
[null,null,null,null,null,null,null,null,null,null,null,null,null,null,null,null,null,null,null,null,"GCI16"]
[null,null,null,null,null,null,null,null,null,null,null,null,null,"INFORMACIÓN CUALITATIVA ADICIONAL",null,null,null,null,null,null,"GCI19"]
[null,null,null,null,null,null,null,null,null,null,null,null,null,"Nuestra empresa cuenta con una planta y equipo de trabajo de 4 ingenieros de sistemas dedicados al desarrollo de plataformas tecnologicas que beneficien y satisfagan muchas de las necesidades de las personas. Hemos participado en varios 6 procesos de innovacion tecnologica durante los ultimos 2 años  ",null,null,null,null,null,null,"GCI11"]
[]
[]
[]
[]
[]
[]
[]
[]
[]
[]
[null,null,null,null,null,null,null,null,null,null,null,null,null,"OTRAS ENTIDADES "]
[null,null,null,null,null,null,null,null,null,null,null,null,null,"Creemos firmemente que CONSTRUSEF SAS  tiene la capacidad tecnica, tecnologica y operativa para realizar innovación pública y aplicar herramientas de innovación en el diseño, estructuración y ejecución de proyectos para ciudades inteligentes"]
[]
[]
[]
[]
[]
[]
[]
[]
[]
[]
[]
[]
[]
[]
[]
[]
[]
[]
[null,null,"ANÁLISIS DE CAPACIDADES",null,null,null,null,null,null,null,null,null,null,"INSUMOS -PROCESO"]
[]
[]
[null,null,null,null,null,null,null,null,"ESTADO  ACTUAL DE LA CAPACIDAD ",null,null,null,null,"FURAG"]
[null,null,null,null,null,null,null,null,"Se tiene la capacidad tecnica y financiera para la formulacion y gestion de proyectos incluyendo todos los aspectos financieros y economicos que se necesitan exponer para demostar que ademas de ser un proyecto con multiples beneficios sociales, tecnologicos y organizacionales, tiene definido un modelo de negocio sustentable y escalable. "]
[]
[]
[]
[]
[null,null,null,"CAPACIDAD 3"]
[null,null,null,"La entidad tiene la capacidad o habilidad para gestionar la consecución de recursos financieros y administrar el gasto y las inversiones para la formulación y ejecución de ciudades y territorios inteligentes."]
[null,null,null,null,null,null,null,null,null,null,null,null,null,null,null,null,null,null,null,null,"CÓDIGO FURAG","PREGUNTA ","RESPUESTA"]
[null,null,null,null,null,null,null,null,null,null,null,null,null,null,null,null,null,null,null,null,"GCI24"]
[null,null,null,null,null,null,null,null,null,null,null,null,null,null,null,null,null,null,null,null,"PLA16"]
[null,null,null,null,null,null,null,null,null,null,null,null,null,"INFORMACIÓN CUALITATIVA ADICIONAL",null,null,null,null,null,null,"GPR32"]
[null,null,null,null,null,null,null,null,null,null,null,null,null,"Nuestra empresa iniciará el proceso de buscar financiacion publica para el desarrollo y ejecucion de nuestros proyectos en la ciudad y en la region.",null,null,null,null,null,null,"GPR33"]
[null,null,null,null,null,null,null,null,null,null,null,null,null,null,null,null,null,null,null,null,"GDI08"]
[]
[null,null,null,"Innovación"]
[]
[]
[]
[]
[]
[]
[]
[null,null,null,null,null,null,null,null,null,null,null,null,null,"OTRAS ENTIDADES "]
[null,null,null,null,null,null,null,null,null,null,null,null,null,"Tenemos como objetivo iniciar la busqueda de integrar nuestro proyecto con la secretaria de movilidad municipal y desde alli gestionar recursos en entidades publicas como MIN TRANSPORTE - REGALIAS - DNP - FINDETER "]
[]
[]
[]
[]
[]
[]
[]
[]
[]
[]
[]
[]
[]
[]
[]
[]
[]
[]
[]
[]
[]
[]
[]
[]
[]
[]
[null,null,"ANÁLISIS DE CAPACIDADES",null,null,null,null,null,null,null,null,null,null,"INSUMOS -PROCESO"]
[]
[]
[null,null,null,null,null,null,null,null,"ESTADO  ACTUAL DE LA CAPACIDAD ",null,null,null,null,"FURAG"]
[null,null,null,null,null,null,null,null,"Estamos dispuestos a compartir toda la informacion necesaria para que otras empresas y sectores economicos de la region se incorporen a nuestra mision del desarrollo inteligente de nuestra ciudad. En nuestra empresa consideramos que unir esfuerzos es la mejor manera de hacer de_______________ una ciudad innovadora e inclusiva. Tambien estamos seguros que contamos con personas con mucho potencial e iniciativas que merecen tener una oportunidad para crecer. "]
[]
[]
[null,null,null,null,null,null,null,null,null,null,null,null,null,null,null,null,null,null,null,null,"CÓDIGO FURAG","PREGUNTA ","RESPUESTA"]
[null,null,null,null,null,null,null,null,null,null,null,null,null,null,null,null,null,null,null,null,"GCI01"]
[null,null,null,"CAPACIDAD 4",null,null,null,null,null,null,null,null,null,null,null,null,null,null,null,null,"GCI02"]
[null,null,null,"La entidad tiene la capacidad o habilidad para gestionar el conocimiento, es\ndecir, de reducir las curvas de aprendizaje e incorporar la cultura del compartir y difundir conocimiento en todos los proyectos que se desarrollan en la entidad, ciudad o territorio.",null,null,null,null,null,null,null,null,null,null,null,null,null,null,null,null,"GCI03"]
[null,null,null,null,null,null,null,null,null,null,null,null,null,null,null,null,null,null,null,null,"GCI04"]
[null,null,null,null,null,null,null,null,null,null,null,null,null,null,null,null,null,null,null,null,"GCI06"]
[null,null,null,null,null,null,null,null,null,null,null,null,null,null,null,null,null,null,null,null,"GCI07"]
[null,null,null,null,null,null,null,null,null,null,null,null,null,"INFORMACIÓN CUALITATIVA ADICIONAL",null,null,null,null,null,null,"GCI09"]
[null,null,null,null,null,null,null,null,null,null,null,null,null,"Dentro de nuestras metas esta contemplada la posibilidad de hacer alianzas con universidades de la region de manera que los estudiantes puedan realizar sus practicas profesionales en nuestra empresa con el fin de brindar una oportunidad de aprendizaje en distintas areas y proyectos, asi como recibir ideas y colaboracion mutua. "]
[]
[]
[null,null,null,"Gestión del conocimiento"]
[]
[]
[]
[]
[]
[]
[]
[]
[]
[null,null,null,null,null,null,null,null,null,null,null,null,null,"OTRAS ENTIDADES "]
[null,null,null,null,null,null,null,null,null,null,null,null,null,"La gestion del conocimiento que se desarrolla en CONSTRUSEF SAS se basa en realizar mesas tecnicas donde el personal de las distintas areas aporta sobre retos y problemas que se presentan en los proyectos que realizamos. La opinion de todos es valiosa y contribuye a ver las cosas desde diferentes angulos. "]
[]
[]
[]
[]
[]
[]
[]
[]
[]
[]
[]
[]
[]
[]
[]
[]
[]
[]
[]
[]
[null,null,"ANÁLISIS DE CAPACIDADES",null,null,null,null,null,null,null,null,null,null,"INSUMOS -PROCESO"]
[]
[]
[null,null,null,null,null,null,null,null,"ESTADO  ACTUAL DE LA CAPACIDAD ",null,null,null,null,"FURAG"]
[null,null,null,null,null,null,null,null,"Se tiene toda la capacidad tecnica para gestionar y liderar la implemantacion de iniciativas y proyectos de ciudades inteligentes. Realizar proyectos de infraestructura durante muchos años nos ha dado la capacidad de formular, licitar, ejecutar y entregar proyectos de calidad. Incursionar en economias creativas nos ha dado la vision de que la tecnologia transforma todo a nuestro alrededor. Contar con el personal idoneo en las diferentes areas del conocimiento nos da la seguridad de que podemos liderar proyectos para hacer de _____________  una ciudad y un territorio inteligente e innovador."]
[]
[]
[null,null,null,null,null,null,null,null,null,null,null,null,null,null,null,null,null,null,null,null,"CÓDIGO FURAG","PREGUNTA ","RESPUESTA"]
[null,null,null,null,null,null,null,null,null,null,null,null,null,null,null,null,null,null,null,null,"PCI01"]
[null,null,null,"CAPACIDAD 5",null,null,null,null,null,null,null,null,null,null,null,null,null,null,null,null,"PCI02"]
[null,null,null,"La entidad tiene la capacidad para liderar y gestionar la implementación de iniciativas de ciudades inteligentes.",null,null,null,null,null,null,null,null,null,null,null,null,null,null,null,null,"PCI03"]
[null,null,null,null,null,null,null,null,null,null,null,null,null,null,null,null,null,null,null,null,"PCI04"]
[null,null,null,null,null,null,null,null,null,null,null,null,null,null,null,null,null,null,null,null,"PCI05"]
[null,null,null,null,null,null,null,null,null,null,null,null,null,null,null,null,null,null,null,null,"PCI06"]
[null,null,null,null,null,null,null,null,null,null,null,null,null,"INFORMACIÓN CUALITATIVA ADICIONAL",null,null,null,null,null,null,"PCI07"]
[null,null,null,null,null,null,null,null,null,null,null,null,null,"En nuestra empresa contamos con el liderazgo de Laura Peralta quien se desempeña como CIO de la organización. En los ultimos 2 años se ha gestinado la participacion en mas de 6 procesos y convocatorias del sector TIC donde hemos salido favorecidos y reconocidos por innovar en este ambito. "]
[]
[]
[]
[]
[]
[]
[]
[]
[]
[]
[]
[]
[null,null,null,null,null,null,null,null,null,null,null,null,null,"OTRAS ENTIDADES "]
[null,null,null,null,null,null,null,null,null,null,null,null,null,"CONSTRUSEF SAS ha participado en convocatorias y procesos realizados desde APPS.CO - SOCIAL SKIN (GRUPO BOLIVAR) - INGRAM MICRO (COMET COMPETITION) - RETO LAB (MIN TIC)"]
[]
[]
[]
[]
[]
[]
[]
[]
[]
[]
[]
[]
[]
[]
[]
[]
[]
[]
[]
[]
[]
[]
[null,null,"ANÁLISIS DE CAPACIDADES",null,null,null,null,null,null,null,null,null,null,"INSUMOS -PROCESO"]
[]
[]
[null,null,null,null,null,null,null,null,"ESTADO  ACTUAL DE LA CAPACIDAD ",null,null,null,null,"FURAG"]
[null,null,null,null,null,null,null,null,"Se cuenta con un equipo de trabajo multidisiplinario para realizar proyectos que involucran conocimiento en TRANSPORTE - INGENIERIA CIVIL - ARQUITECTURA - HSEQ - INGENIERIA DE SISTEMAS - CONTABILIDAD - JURISPRUDENCIA - NEGOCIOS  quienes son valorados no solo por sus conocimientos sino tambien por su calidad humana. En nuestra empresa fomentamos y alentamos a que todos nos capacitemos constantemente, y a vivir actualizandonos en informacion sobre los avances que se realizan diariamente en el mundo."]
[null,null,null,null,null,null,null,null,null,null,null,null,null,null,null,null,null,null,null,null,"CÓDIGO FURAG","PREGUNTA ","RESPUESTA"]
[null,null,null,null,null,null,null,null,null,null,null,null,null,null,null,null,null,null,null,null,"GTH26"]
[null,null,null,null,null,null,null,null,null,null,null,null,null,null,null,null,null,null,null,null,"GTH27"]
[null,null,null,null,null,null,null,null,null,null,null,null,null,null,null,null,null,null,null,null,"GTH24"]
[null,null,null,"CAPACIDAD 6"]
[null,null,null,"La entidad tiene la capacidad para desarrollar competencias en los líderes de la entidad que permitan la implementación de iniciativas de Ciudades y Territorios Inteligentes."]
[]
[]
[]
[null,null,null,null,null,null,null,null,null,null,null,null,null,"INFORMACIÓN CUALITATIVA ADICIONAL"]
[null,null,null,null,null,null,null,null,null,null,null,null,null,"Los lideres de CONSTRUSEF SAS se encuentran formandose de manera alterna en habilidades gerenciales y organizacionales."]
[]
[]
[null,null,null,"Talento Humano"]
[]
[]
[]
[]
[]
[]
[null,null,null,null,null,null,null,null,null,null,null,null,null,"OTRAS ENTIDADES "]
[null,null,null,null,null,null,null,null,null,null,null,null,null,"Actualmente en nuestra empresa los lideres estan realizando capacitaciones en programas de capacitacion que ofrece el gobierno municipal en aspectos de organizacionales mediante la plataforma COURSERA.ORG"]
[]
[]
[]
[]
[]
[]
[]
[]
[]
[]
[]
[]
[]
[]
[]
[]
[]
[]
[]
[]
[]
[null,null,"ANÁLISIS DE CAPACIDADES",null,null,null,null,null,null,null,null,null,null,"INSUMOS -PROCESO"]
[]
[]
[null,null,null,null,null,null,null,null,"ESTADO  ACTUAL DE LA CAPACIDAD ",null,null,null,null,"FURAG"]
[null,null,null,null,null,null,null,null,"Se cuenta con un equipo de trabajo multidisiplinario para realizar proyectos que involucran conocimiento en TRANSPORTE - INGENIERIA CIVIL - ARQUITECTURA - HSEQ - INGENIERIA DE SISTEMAS - CONTABILIDAD - JURISPRUDENCIA - NEGOCIOS  quienes son valorados no solo por sus conocimientos sino tambien por su calidad humana. En nuestra empresa fomentamos y alentamos a que todos nos capacitemos constantemente, y a vivir actualizandonos en informacion sobre los avances que se realizan diariamente en el mundo."]
[]
[]
[null,null,null,null,null,null,null,null,null,null,null,null,null,null,null,null,null,null,null,null,"CÓDIGO FURAG","PREGUNTA ","RESPUESTA"]
[null,null,null,null,null,null,null,null,null,null,null,null,null,null,null,null,null,null,null,null,"GTH25"]
[null,null,null,"CAPACIDAD 7",null,null,null,null,null,null,null,null,null,null,null,null,null,null,null,null,"GTH26"]
[null,null,null,"La entidad tiene la capacidad para crear y fortalecer las habilidades de sus servidores públicos tendientes a impulsar el desarrollo de territorios y ciudades inteligentes.",null,null,null,null,null,null,null,null,null,null,null,null,null,null,null,null,"GTH27"]
[null,null,null,null,null,null,null,null,null,null,null,null,null,null,null,null,null,null,null,null,"GTH01"]
[null,null,null,null,null,null,null,null,null,null,null,null,null,null,null,null,null,null,null,null,"GTH02"]
[]
[null,null,null,null,null,null,null,null,null,null,null,null,null,"INFORMACIÓN CUALITATIVA ADICIONAL"]
[null,null,null,null,null,null,null,null,null,null,null,null,null,"Ademas de la educacion formal realizada en CONSTRUSEF SAS algunos miembros del equipo de trabajo han realizado formacion complementaria en el desarrollo de sistemas operativos y lenguajes de programacion y diseño web."]
[]
[]
[]
[]
[]
[]
[]
[]
[]
[null,null,null,null,null,null,null,null,null,null,null,null,null,"OTRAS ENTIDADES "]
[null,null,null,null,null,null,null,null,null,null,null,null,null,"Actualmente en nuestra empresa varios miembros del equipo de trabajo realizan capacitaciones en programas de capacitacion que ofrece el gobierno nacional mediante APPS.CO e INNPULSA COLOMBIA "]
[]
[]
[]
[]
[]
[]
[]
[null,null,"ANÁLISIS DE CAPACIDADES",null,null,null,null,null,null,null,null,null,null,"INSUMOS -PROCESO"]
[]
[]
[null,null,null,null,null,null,null,null,"ESTADO  ACTUAL DE LA CAPACIDAD ",null,null,null,null,"FURAG"]
[null,null,null,null,null,null,null,null,"Una de las proyecciones es ofrecer conocimiento en el area de cultura ciudadana mediante el uso del transporte publico a los habitantes de _____________. Consideramos que para crear esa conciencia del uso del TPC debemos proyectarnos a ofrecer un servicio de calidad que cumpla con sus expectativas y necesidades. "]
[]
[]
[]
[]
[null,null,null,"CAPACIDAD 8"]
[null,null,null,"La entidad tiene la capacidad para crear y fortalecer las habilidades de sus ciudadanos para el uso de soluciones de ciudades y territorios inteligentes"]
[]
[]
[]
[null,null,null,null,null,null,null,null,null,null,null,null,null,"INFORMACIÓN CUALITATIVA ADICIONAL"]
[null,null,null,null,null,null,null,null,null,null,null,null,null,"La creacion de la cultura ciudadana del uso del TPC es vital para el desarrollo urbano, social y economico en nuestra ciudad. Nuestro Proyecto PIT se enfoca en gran medida a hacer y establecer esta metodologia. "]
[]
[]
[null,null,null,"Alianzas"]
[]
[]
[]
[]
[null,null,null,null,null,null,null,null,null,null,null,null,null,null,null,null,null,null,null,null,"CÓDIGO FURAG","PREGUNTA ","RESPUESTA"]
[null,null,null,null,null,null,null,null,null,null,null,null,null,"OTRAS ENTIDADES ",null,null,null,null,null,null,"GDI17"]
[null,null,null,null,null,null,null,null,null,null,null,null,null,"En este proceso se realizaran alianzas con la administracion municipal, asi como la realizacion de capacitaciones en los colegios y demas instituciones que nos brinden el espacio. ",null,null,null,null,null,null,"TRA18"]
[]
[]
[]
[]
[]
[]
[]
[]
[]
[]
[]
[]
[]
[]
[]
[]
[]
[]
[]
[]
[]
[null,null,"ANÁLISIS DE CAPACIDADES",null,null,null,null,null,null,null,null,null,null,"INSUMOS -PROCESO"]
[]
[]
[null,null,null,null,null,null,null,null,"ESTADO  ACTUAL DE LA CAPACIDAD ",null,null,null,null,"FURAG"]
[null,null,null,null,null,null,null,null,"Se cuenta con toda la capacidad tecnica para la gestion y administracion de datos e informacion relacionada a proyectos que involucran la creacion de ciudades y territorios inteligentes. Asi mismo nuestra empresa cuenta con la capacidad juridica para operar los datos de manera legal, segura con los usuarios y cumpliendo con las exigencias gubernamentales que se apliquen. "]
[]
[]
[]
[]
[null,null,null,"CAPACIDAD 9 "]
[null,null,null,"La entidad tiene la capacidad para gestionar y gobernar datos e información que garanticen su calidad durante todo su ciclo de vida"]
[]
[]
[]
[null,null,null,null,null,null,null,null,null,null,null,null,null,"INFORMACIÓN CUALITATIVA ADICIONAL"]
[null,null,null,null,null,null,null,null,null,null,null,null,null,"Nuestra empresa se compromete a hacer el correcto uso de los datos e informacion obtenida durante la formulacion y/o desarrollo de los proyectos con enforque a ciudades y territorios inteligentes. "]
[]
[]
[]
[]
[]
[]
[]
[]
[]
[null,null,null,null,null,null,null,null,null,null,null,null,null,"OTRAS ENTIDADES "]
[null,null,null,null,null,null,null,null,null,null,null,null,null,"La informacion obtenida durante la formulacion y desarrollo de los proyectos podra ser suministrada a quien le interese con el fin de que los procesos se desarrollen con total transparencia. ",null,null,null,null,null,null,"CÓDIGO FURAG","PREGUNTA ","RESPUESTA"]
[null,null,null,null,null,null,null,null,null,null,null,null,null,null,null,null,null,null,null,null,"GCI19"]
[null,null,null,null,null,null,null,null,null,null,null,null,null,null,null,null,null,null,null,null,"FOR10"]
[]
[]
[]
[]
[]
[]
[]
[]
[]
[]
[]
[]
[]
[]
[]
[]
[]
[]
[]
[]
[]
[]
[]
[]
[]
[]
[]
[null,null,"ANÁLISIS DE CAPACIDADES",null,null,null,null,null,null,null,null,null,null,"INSUMOS -PROCESO"]
[]
[]
[null,null,null,null,null,null,null,null,"ESTADO  ACTUAL DE LA CAPACIDAD ",null,null,null,null,"FURAG"]
[null,null,null,null,null,null,null,null,"Se tienen todas las herramientas necesarias para el analisis y explotacion de datos. Actualmente implementamos Azure Stream Analytics. Estamos seguros que la informacion es poder y que mediante los datos recolectados con el uso de las tecnologias que proponemos podemos diseñar un sistema de TPC exitoso. "]
[]
[]
[]
[]
[null,null,null,"CAPACIDAD 10"]
[null,null,null,"La entidad puede y sabe aplicar técnicas y tecnologías para el análisis y explotación de datos para la toma de decisiones"]
[]
[]
[]
[null,null,null,null,null,null,null,null,null,null,null,null,null,"INFORMACIÓN CUALITATIVA ADICIONAL"]
[null,null,null,null,null,null,null,null,null,null,null,null,null,"En nuestra empresa estamos utilizando Azure Stream Analytics para el analisis y control de datos para los proyectos tecnologicos. "]
[]
[]
[null,null,null,"Análisis de datos"]
[]
[null,null,null,null,null,null,null,null,null,null,null,null,null,null,null,null,null,null,null,null,"CÓDIGO FURAG","PREGUNTA ","RESPUESTA"]
[null,null,null,null,null,null,null,null,null,null,null,null,null,null,null,null,null,null,null,null,"GCI25"]
[null,null,null,null,null,null,null,null,null,null,null,null,null,null,null,null,null,null,null,null,"GDI30"]
[null,null,null,null,null,null,null,null,null,null,null,null,null,null,null,null,null,null,null,null,"GDI31"]
[null,null,null,null,null,null,null,null,null,null,null,null,null,"OTRAS ENTIDADES ",null,null,null,null,null,null,"GES05"]
[null,null,null,null,null,null,null,null,null,null,null,null,null,"En CONSTRUSEF SAS tenemos establecida una metodologia para el analisis de satos, tambien podemos operar con los sistemas de analisis de datos con los que cuenten las entidades aliadas en los procesos. ",null,null,null,null,null,null,"GCI20"]
[null,null,null,null,null,null,null,null,null,null,null,null,null,null,null,null,null,null,null,null,"GDI32"]
[]
[]
[]
[]
[]
[]
[]
[]
[]
[]
[]
[]
[]
[]
[]
[]
[]
[]
[]
[]
[]
[]
[]
[]
[]
[]
[]
[]
[]
[]
[null,null,"ANÁLISIS DE CAPACIDADES",null,null,null,null,null,null,null,null,null,null,"INSUMOS -PROCESO"]
[]
[]
[null,null,null,null,null,null,null,null,"ESTADO  ACTUAL DE LA CAPACIDAD ",null,null,null,null,"FURAG"]
[null,null,null,null,null,null,null,null,"Se tiene la capacidad de realizar la implementacion, despliegue, pruebas y operación del proyecto que proponemos para hacer de _____________ una ciudad inteligente. Contamos con el personal capacitado en operar plataformas y servicios de conectividad y almacenamiento en la nube, asi como equipos que operan estas funciomes y software"]
[]
[]
[]
[]
[null,null,null,"CAPACIDAD 11"]
[null,null,null,"La entidad tiene la capacidad de realizar la implementación, despliegue, pruebas y operación de los servicios de conectividad y nube."]
[]
[]
[null,null,null,null,null,null,null,null,null,null,null,null,null,null,null,null,null,null,null,null,"CÓDIGO FURAG","PREGUNTA ","RESPUESTA"]
[null,null,null,null,null,null,null,null,null,null,null,null,null,"INFORMACIÓN CUALITATIVA ADICIONAL",null,null,null,null,null,null,"GDI10","Con relación a la planeación y gestión de los componentes de información, la entidad:","Ninguna de las anteriores"]
[null,null,null,null,null,null,null,null,null,null,null,null,null,"En nuestra empresa contamos con la capacidad tencica y operativa para llevar a cabo la implementacion de proyectos de ciudades y territorios inteligentes. "]
[]
[]
[null,null,null,"Medición indicador de arquitectura"]
[]
[]
[]
[]
[]
[]
[]
[null,null,null,null,null,null,null,null,null,null,null,null,null,"OTRAS ENTIDADES "]
[null,null,null,null,null,null,null,null,null,null,null,null,null,{"$f":"+N568","v":"Proponemos una alianza estrategica con el _______________________ ya que cuenta con la capacidad tecnica y tecologica para el monitoreo de datos a traves de dispositivos electronicos. "}]
[]
[]
[]
[]
[]
[]
[]
[]
[]
[]
[]
[]
[]
[]
[]
[]
[]
[]
[]
[]
[]
[]
[]
[null,null,"ANÁLISIS DE CAPACIDADES",null,null,null,null,null,null,null,null,null,null,"INSUMOS -PROCESO"]
[]
[]
[null,null,null,null,null,null,null,null,"ESTADO  ACTUAL DE LA CAPACIDAD ",null,null,null,null,"FURAG"]
[null,null,null,null,null,null,null,null,"Se cuenta con la capacidad de tener comunicación, categorización y monitorización de los datos en tiempo real de forma eficiente y optimizada. A nivel de hardware e infraestructura física contamos con equipos adaptables y el espacio necesario para la realizacion de las actividades que requiera el proyecto. "]
[]
[]
[]
[]
[null,null,null,"CAPACIDAD 12"]
[null,null,null,"La entidad tiene la capacidad de realizar la instalación, despliegue, pruebas y monitoreo de la infraestructura de IoT"]
[]
[null,null,null,null,null,null,null,null,null,null,null,null,null,null,null,null,null,null,null,null,"CÓDIGO FURAG","PREGUNTA ","RESPUESTA"]
[null,null,null,null,null,null,null,null,null,null,null,null,null,null,null,null,null,null,null,null,"GDI27"]
[null,null,null,null,null,null,null,null,null,null,null,null,null,"INFORMACIÓN CUALITATIVA ADICIONAL",null,null,null,null,null,null,"GDI28"]
[null,null,null,null,null,null,null,null,null,null,null,null,null,"En nuestra empresa nos enfocamos en realizar proyectos que involucran la captura, tratamiento, organización y visualización de datos en tiempo real procedentes de plataformas instaladas en la operación del mismo.",null,null,null,null,null,null,"GDI29"]
[null,null,null,null,null,null,null,null,null,null,null,null,null,null,null,null,null,null,null,null,"GDI02"]
[]
[null,null,null,"Intercambio de información "]
[]
[]
[]
[]
[]
[]
[null,null,null,null,null,null,null,null,null,null,null,null,null,"OTRAS ENTIDADES "]
[null,null,null,null,null,null,null,null,null,null,null,null,null,"Proponemos una alianza estrategica con el _______________________ ya que cuenta con la capacidad tecnica y tecologica para el monitoreo de datos a traves de dispositivos electronicos. "]
[]
[]
[]
[]
[]
[]
[]
[]
[]
[]
[]
[]
[]
[]
[]
[]
[]
[]
[]
[]
[]
[]
[]
[]
[]
[]
[]
[]
[]
[null,null,"ANÁLISIS DE CAPACIDADES",null,null,null,null,null,null,null,null,null,null,"INSUMOS -PROCESO"]
[]
[]
[null,null,null,null,null,null,null,null,"ESTADO  ACTUAL DE LA CAPACIDAD ",null,null,null,null,"FURAG"]
[null,null,null,null,null,null,null,null,"Se cuenta con la capacidad tecnica, tecnologica y operativa para incorporar e implementar todas las herramientas tecnologicas necesarias para complementar nuestros proyectos y proponer alternativas innovadoras y creativas en la resolucion de problemas y retos. "]
[]
[null,null,null,null,null,null,null,null,null,null,null,null,null,null,null,null,null,null,null,null,"CÓDIGO FURAG","PREGUNTA ","RESPUESTA"]
[null,null,null,null,null,null,null,null,null,null,null,null,null,null,null,null,null,null,null,null,"GDI18"]
[null,null,null,null,null,null,null,null,null,null,null,null,null,null,null,null,null,null,null,null,"GDI19"]
[null,null,null,"CAPACIDAD 13",null,null,null,null,null,null,null,null,null,null,null,null,null,null,null,null,"GDI10"]
[null,null,null,"La entidad tiene la capacidad para incorporar e implementar estándares Técnicos de TI y tecnologías emergentes en la resolución de problemas y retos.",null,null,null,null,null,null,null,null,null,null,null,null,null,null,null,null,"GDI22"]
[null,null,null,null,null,null,null,null,null,null,null,null,null,null,null,null,null,null,null,null,"GDI23"]
[null,null,null,null,null,null,null,null,null,null,null,null,null,null,null,null,null,null,null,null,"GDI24"]
[null,null,null,null,null,null,null,null,null,null,null,null,null,null,null,null,null,null,null,null,"GDI25"]
[null,null,null,null,null,null,null,null,null,null,null,null,null,"INFORMACIÓN CUALITATIVA ADICIONAL",null,null,null,null,null,null,"SDI01"]
[null,null,null,null,null,null,null,null,null,null,null,null,null,"Nuestra empresa propone el uso de la TI y uso de IOT para el desarrollo de todos y cada uno de los proyectos. ",null,null,null,null,null,null,"SDI16"]
[]
[]
[null,null,null,"Resultado de la política de seguridad "]
[]
[]
[]
[]
[]
[]
[]
[null,null,null,null,null,null,null,null,null,null,null,null,null,"OTRAS ENTIDADES "]
[null,null,null,null,null,null,null,null,null,null,null,null,null,{"$f":"+N568","v":"Proponemos una alianza estrategica con el _______________________ ya que cuenta con la capacidad tecnica y tecologica para el monitoreo de datos a traves de dispositivos electronicos. "}]
[]
[]
[]
[]
[]
[]
[]
[]
[]
[]
[]
[]
[]
[]
[]
[]
[]
[]
[]
[]
[null,null,"ANÁLISIS DE CAPACIDADES",null,null,null,null,null,null,null,null,null,null,"INSUMOS -PROCESO"]
[]
[]
[null,null,null,null,null,null,null,null,"ESTADO  ACTUAL DE LA CAPACIDAD ",null,null,null,null,"FURAG"]
[null,null,null,null,null,null,null,null,"Se cuenta con la capacidad de diseñar, implementar y gobernar los elementos que conforman las arquitecturas de TI en la ciudad de ______________, asi como la capacidad de trabajar conjuntamente con la entidad y administracion municipal. "]
[]
[]
[]
[null,null,null,null,null,null,null,null,null,null,null,null,null,null,null,null,null,null,null,null,"CÓDIGO FURAG","PREGUNTA ","RESPUESTA"]
[null,null,null,"CAPACIDAD  14",null,null,null,null,null,null,null,null,null,null,null,null,null,null,null,null,"GDI09"]
[null,null,null,"La entidad tiene la capacidad de diseñar, implementar y gobernar los elementos que conforman las arquitecturas de TI de la entidad o de la ciudad",null,null,null,null,null,null,null,null,null,null,null,null,null,null,null,null,"FOR02"]
[]
[]
[]
[null,null,null,null,null,null,null,null,null,null,null,null,null,"INFORMACIÓN CUALITATIVA ADICIONAL"]
[null,null,null,null,null,null,null,null,null,null,null,null,null,"Basados en la premisa de trabajar en equipo estamos seguros que nuestro equipo de trabajo tiene la capacidad de trabajar conjuntamente con los funcionarios publicos de la administracion municipal para el desarrollo del proyecto "]
[]
[]
[null,null,null,"Gestión de proyectos"]
[]
[]
[]
[]
[]
[]
[]
[]
[]
[null,null,null,null,null,null,null,null,null,null,null,null,null,"OTRAS ENTIDADES "]
[null,null,null,null,null,null,null,null,null,null,null,null,null,"Proponemos una alianza estrategica con el _________________________ con el cual hemos formulado proyectos previamente. "]
[]
[]
[]
[]
[]
[]
[null,null,"ANÁLISIS DE CAPACIDADES",null,null,null,null,null,null,null,null,null,null,"INSUMOS -PROCESO"]
[]
[]
[null,null,null,null,null,null,null,null,"ESTADO  ACTUAL DE LA CAPACIDAD ",null,null,null,null,"FURAG"]
[null,null,null,null,null,null,null,null,"Tenemos definido un sistema de gestion integrado SGI que contempla dentro de su estructura procesos y procedimientos para la comunicación interna y externa de la empresa, de manera que el intercambio de informacion y procedimientos se realice de la mejor manera garantizando la seguridad de la informacion y documentos. "]
[]
[]
[]
[]
[null,null,null,"CAPACIDAD 15"]
[null,null,null,"La entidad desarrolla mecanismos y aplica estándares y buenas prácticas que facilitan el intercambio de información interna y externamente"]
[]
[]
[]
[null,null,null,null,null,null,null,null,null,null,null,null,null,"INFORMACIÓN CUALITATIVA ADICIONAL"]
[null,null,null,null,null,null,null,null,null,null,null,null,null,"Estamos en proceso de solicitar la certificacion en implementacion de sistemas de gestion ISO 9001 - ISO 14001 y OHSAS 18001"]
[]
[]
[]
[]
[]
[]
[null,null,null,null,null,null,null,null,null,null,null,null,null,null,null,null,null,null,null,null,"CÓDIGO FURAG","PREGUNTA ","RESPUESTA"]
[null,null,null,null,null,null,null,null,null,null,null,null,null,null,null,null,null,null,null,null,"GDI11"]
[null,null,null,null,null,null,null,null,null,null,null,null,null,"OTRAS ENTIDADES ",null,null,null,null,null,null,"GDI12"]
[null,null,null,null,null,null,null,null,null,null,null,null,null,"El contar con sistemas de gestion estandarizados nos brinda la posibilidad de realizar alianzas con entidades publicas y privadas.",null,null,null,null,null,null,"GDI13"]
[]
[]
[]
[]
[]
[]
[]
[]
[]
[]
[]
[]
[]
[]
[]
[]
[]
[]
[]
[]
[]
[]
[]
[]
[]
[]
[]
[]
[]
[]
[null,null,"ANÁLISIS DE CAPACIDADES",null,null,null,null,null,null,null,null,null,null,"INSUMOS -PROCESO"]
[]
[]
[null,null,null,null,null,null,null,null,"ESTADO  ACTUAL DE LA CAPACIDAD ",null,null,null,null,"FURAG"]
[null,null,null,null,null,null,null,null,"Actualmente estamos trabajando en establecer una metodología para la gestión de riesgos de seguridad digital con el fin de orientar a las múltiples partes interesadas en la gestión de riesgos de seguridad digital es decir aquellas que posean, administren o estén relacionadas con infraestructura crítica cibernética (ICC)"]
[]
[]
[]
[]
[null,null,null,"CAPACIDAD 16"]
[null,null,null,"La entidad realiza implementación efectiva de controles y medidas para administrar riesgos de seguridad digital de la entidad"]
[]
[]
[]
[null,null,null,null,null,null,null,null,null,null,null,null,null,"INFORMACIÓN CUALITATIVA ADICIONAL"]
[null,null,null,null,null,null,null,null,null,null,null,null,null,"A fin de realizar una gestion adecuada de nuestros proyectos en nuestra empresa se estan adoptando mecanismos para el control y segurudad digital de toda la informacion."]
[null,null,null,null,null,null,null,null,null,null,null,null,null,null,null,null,null,null,null,null,"CÓDIGO FURAG","PREGUNTA ","RESPUESTA"]
[null,null,null,null,null,null,null,null,null,null,null,null,null,null,null,null,null,null,null,null,"GDI14"]
[]
[]
[]
[]
[]
[]
[]
[]
[]
[null,null,null,null,null,null,null,null,null,null,null,null,null,"OTRAS ENTIDADES "]
[null,null,null,null,null,null,null,null,null,null,null,null,null,"CONSTRUSEF SAS inicia la implementación efectiva de controles y medidas para administrar riesgos de seguridad digital?"]
[]
[]
[]
[]
[]
[]
[]
[]
[]
[]
[null,null,"ANÁLISIS DE CAPACIDADES",null,null,null,null,null,null,null,null,null,null,"INSUMOS -PROCESO"]
[]
[]
[]
[]
[]
[]
[]
[null,null,null,null,null,null,null,null,"ESTADO  ACTUAL DE LA CAPACIDAD ",null,null,null,null,"FURAG"]
[null,null,null,null,null,null,null,null,"Tenemos definido un sistema de gestion integrado SGI que contempla dentro de su estructura procesos y procedimientos para la realizacion de actividades, esto involucra las actividades para estructurar, iniciar, ejecutar, hacer seguimiento y cierre de proyectos de TI"]
[]
[]
[]
[]
[null,null,null,"CAPACIDAD 17"]
[null,null,null,"La entidad aplica mejores prácticas para estructurar, iniciar, ejecutar, hacer seguimiento y cierre de proyectos de TI"]
[]
[]
[]
[null,null,null,null,null,null,null,null,null,null,null,null,null,"INFORMACIÓN CUALITATIVA ADICIONAL"]
[null,null,null,null,null,null,null,null,null,null,null,null,null,"Nuesta empresa tiene la capacidad para incorporar e implementar estándares Técnicos de TI  y tecnologías emergentes  en la resolución de problemas y retos"]
[]
[]
[]
[]
[]
[]
[null,null,null,null,null,null,null,null,null,null,null,null,null,null,null,null,null,null,null,null,"CÓDIGO FURAG","PREGUNTA ","RESPUESTA"]
[null,null,null,null,null,null,null,null,null,null,null,null,null,null,null,null,null,null,null,null,"GDI14"]
[null,null,null,null,null,null,null,null,null,null,null,null,null,null,null,null,null,null,null,null,"GDI38"]
[]
[]
[null,null,null,null,null,null,null,null,null,null,null,null,null,"OTRAS ENTIDADES "]
[null,null,null,null,null,null,null,null,null,null,null,null,null,"Proponemos una alianza estrategica con el ____________________ con el cual hemos formulado proyectos previamente y es una entidad que tambien opera de la misma manera que nuestra empresa."]
[]
[]
[]
[]
[]
[]
[]
[]
[]
[]
[]
[]
[]
[]
[]
[]
[]
[]
[]
[]
[]
[]
[]
[]
[]
[]
[]
[]
[null,null,"ANÁLISIS DE CAPACIDADES",null,null,null,null,null,null,null,null,null,null,"INSUMOS -PROCESO"]
[]
[]
[null,null,null,null,null,null,null,null,"ESTADO  ACTUAL DE LA CAPACIDAD ",null,null,null,null,"FURAG"]
[null,null,null,null,null,null,null,null,"Tenemos la capacidad de realizar la instalación, despligue, pruebas y monitoreo de la infraestructura de IoT, ya que contamos con el personal idoneo y capacitado para realizar la operación del software y hadware necesario asi como la tecnologia necesaria para hacerlo. "]
[]
[]
[]
[]
[null,null,null,"CAPACIDAD 18"]
[null,null,null,"La entidad tiene la capacidad de realizar la instalación, despligue, pruebas y monitoreo de la infraestructura de IoT"]
[]
[]
[]
[null,null,null,null,null,null,null,null,null,null,null,null,null,"INFORMACIÓN CUALITATIVA ADICIONAL"]
[null,null,null,null,null,null,null,null,null,null,null,null,null,"Nuestra empresa propone el uso de la TI y uso de IOT para el desarrollo de todos y cada uno de los proyectos. ",null,null,null,null,null,null,"CÓDIGO FURAG","PREGUNTA ","RESPUESTA"]
[null,null,null,null,null,null,null,null,null,null,null,null,null,null,null,null,null,null,null,null,"GDI15"]
[null,null,null,null,null,null,null,null,null,null,null,null,null,null,null,null,null,null,null,null,"GDI16"]
[null,null,null,"El internet de las cosas",null,null,null,null,null,null,null,null,null,null,null,null,null,null,null,null,"GDI39"]
[]
[]
[]
[]
[]
[]
[]
[]
[]
[null,null,null,null,null,null,null,null,null,null,null,null,null,"OTRAS ENTIDADES "]
[null,null,null,null,null,null,null,null,null,null,null,null,null,"Proponemos una alianza estrategica con __________________ ya que cuenta con la capacidad tecnica y tecologica para el monitoreo de datos a traves de dispositivos electronicos. "]
[]
[]
[]
[]
[]
[]
[]
[]
[]
[]
[]
[]
[]
[]
[null,null,"ANÁLISIS DE CAPACIDADES",null,null,null,null,null,null,null,null,null,null,"INSUMOS -PROCESO"]
[]
[]
[null,null,null,null,null,null,null,null,"ESTADO  ACTUAL DE LA CAPACIDAD ",null,null,null,null,"FURAG"]
[null,null,null,null,null,null,null,null,"En CONSTRUSEF SAS tenemos la capacidad para incorporar e implementar estándares Técnicos de TI  y tecnologías emergentes  en la resolución de problemas y retos, ya que contamos con el personal idoneo y capacitado para realizar la operación del software y hadware necesario asi como la tecnologia necesaria para hacerlo. "]
[]
[]
[]
[]
[null,null,null,"CAPACIDAD 19"]
[null,null,null,"La entidad tiene la capacidad para incorporar e implementar estándares Técnicos de TI  y tecnologías emergentes  en la resolución de problemas y retos"]
[]
[]
[]
[null,null,null,null,null,null,null,null,null,null,null,null,null,"INFORMACIÓN CUALITATIVA ADICIONAL"]
[null,null,null,null,null,null,null,null,null,null,null,null,null,{"$f":"+N854","v":"Nuestra empresa propone el uso de la TI y uso de IOT para el desarrollo de todos y cada uno de los proyectos. "}]
[]
[]
[]
[]
[]
[null,null,null,null,null,null,null,null,null,null,null,null,null,null,null,null,null,null,null,null,"CÓDIGO FURAG","PREGUNTA ","RESPUESTA"]
[]
[]
[]
[null,null,null,null,null,null,null,null,null,null,null,null,null,"OTRAS ENTIDADES "]
[null,null,null,null,null,null,null,null,null,null,null,null,null,{"$f":"+N868","v":"Proponemos una alianza estrategica con __________________ ya que cuenta con la capacidad tecnica y tecologica para el monitoreo de datos a traves de dispositivos electronicos. "}]